Workbook

Sheet Cover Page
D1: Add company logo
N2: Version 24.2a (for incinerators) - 27/11/24
N4: Note that there is another version of this template available for co-incinerators
N13: Notes:
N14: This template may require adjustments by individual operators to meet specific reporting requirements as defined in the site Permit(s)
B29: Annual Performance Report 2024
B31: Permit EPR/HP3349QK
B33: Wolverhampton Energy from Waste Facility
B35: NA
B37: North Midlands Operations Ltd
B39: Year: | C39: 2024
B41: Address: | C41: Crown Street Wolverhampton West Midlands WV1 1QB
B43: Tel: | C43: 01902 458888
B45: Email: | C45: kate.harrop@cobaltenergy.co.uk
B47: Prepared by: | C47: Simon Higgs | F47: Position: | G47: Operations Manager
B49: Approved by: | C49: Kate Harrop | F49: Position: | G49: Group Q&E Manager
B51: Version: | C51: 1
B53: Issue Date: | C53: 2025-01-30

Sheet Facility Info
A1: =+'Cover Page'!$B$29 -> Annual Performance Report 2024 | E1: =+'Cover Page'!$B$33 -> Wolverhampton Energy from Waste Facility
A3: Plant Description and Design | K3: Notes:
A5: The Wolverhampton Energy from Waste Facility utilises municipal waste to recover energy in the form of electricity and steam for export to the local grid. The facility processes approximately 118,000 tpa of waste in two combustion streams which operate using moving grate furnace systems with a combined capacity of up to 14 tonnes per hour. The heat produced during the incineration process is converted to electrical energy by generating steam in high-pressure boilers and expanding the steam through a steam turbine. When operating at full load, the plant will typically generate around 8 MW of electricity and, after satisfying its own power needs, exports approximately 7.1 MW of electricity to the grid. The installation provides a sustainable method of waste disposal and recovery, predominantly for the area within the administrative boundary of Wolverhampton Metropolitan Borough Council, with smaller quantities of wastes accepted, where capacity and demand exists, from other local authorities within the general vicinity of the plant. The process includes waste reception and storage, combustion, waste heat boilers, abatement of flue gases and the onsite storage of residues produced, namely IBA and APCr. The plant is operated in accordance with its Environmental Management System which is designed to meet the requirements of ISO14001:2004. | K5: Include summary of plant design, design capacity, no. of combustion lines, electrical and heat capacity and any other general information that describes the facility, its location and purpose
A20: Summary of Operational Processes and Procedures
A22: The principle components of the process comprise the following: Waste Acceptance and Reception: All waste is delivered directly into the fuel storage building and unloaded into the storage bunkers. When required, the waste is discharged onto the feedstock feed system, which delivers the waste into the furnaces via feed hoppers. All waste is accepted in accordance to the sites waste acceptance procedures. Combustion: The feed ram ensures that material falls into the moving grate within the furnace in a controlled manner. The moving grate ensures the waste is agitated as it progresses down the furnace to the ash discharge. Primary air is introduced beneath the grate causing the waste to go through a series of drying and burning areas. Secondary air is introduced from above the grate for combustion control. Auxiliary oil fired burners are located in the combustion chamber for start up and temperature control. The produced gases are resident in the combustion chamber at the 850°C for at least 2seconds before transfer to the boiler , economiser and abatement plant. Electricity Generation: Each furnace is equipped with a 2-pass water tube boiler raising steam at 45 bar and 355°C. The steam then passes to a Steam Turbine and Generator, which exports electricity to the grid. Flue-Gas Cleaning: Flue gas cleaning and pollution control consists of urea injection for De-NOx, semi-dry scrubbing using milk of lime spray for acid gas neutralisation and activated carbon powder injection for absorption and removal of heavy metals, dioxins, VOCs and other harmful substances. Bag filters remove particulates prior to emission to atmosphere via a single 76m high stack. Process effluent is treated onsite in the effluent treatment plant and recycled through the process. Any surplus is discharged to foul sewer. The Plant is regulated under the terms of a Permit issued by the Environment Agency (reference HP3349QK) which contains conditions to ensure that the requirements of the Waste Incineration Directive are incorporated and will be met. North Midlands Operations Ltd operates all of its sites under an Integrated Management System certified to ISO 14001:2015 (environmental management), ISO 9001:2015 (quality management), and ISO 45001:2018 (health and safety management). In terms of plant operation, the incineration processes have been designed against the background of a detailed assessment of the prevailing environmental conditions at the site location, and are based upon the Best Available Technology (BAT) as detailed both in the original Authorisation application and the application for the Permit issued under the Environmental Permitting (England and Wales) Regulations (As Amended). These include, but are not limited to, the following: • Well proven process plant developed specifically for incineration of municipal solid wastes • Efficient, comprehensive process control and monitoring systems to ensure optimum conditions for complete combustion of the wastes and to minimise emissions from the processes • Operations confined within buildings under slight negative pressure in order to contain and minimise emissions such as dust and odour • Qualified and experienced operating and maintenance personnel to implement procedures to ensure that the required high standards are maintained. Operating and Maintenance Procedures are established according to an internationally recognised system of quality assurance • Multi-stage high efficiency flue gas cleaning systems comprising deNOx Selective Non-Catalytic Reduction (SNCR) for the removal of oxides of nitrogen, activated carbon and lime semi-dry acid gas scrubbing for controlling acid gas, dioxins/furans and mercury emissions • Final stage flue gas abatement for particulate materials using fabric filtration • Residues from the combustion process and from the flue gas cleaning system disposed of by approved means, maximising recycling wherever possible • Waste water from the process is neutralised and recycled as far as is practicable to minimise the quantities released to sewers • Provision of bunds or double skinned vessels for storage of fuel and chemicals in order to prevent accidental and inappropriate discharge to the public sewers and watercourse. • The site complies with the new Waste Incineration BAT Conclusions, which came into effect on 03.12.2023. | K22: Include summary of key processes and procedures such as (but not limited to); waste reception, control rooms, grate, bed and boiler, energy & heat generation, cooling systems, residue management, emission controls, health and safety systems, maintenance

Sheet Contents
A1: =+'Cover Page'!$B$29 -> Annual Performance Report 2024 | E1: =+'Cover Page'!$B$33 -> Wolverhampton Energy from Waste Facility
A3: Contents | K3: Notes:
A4: Section | B4: Subject | H4: Page | K4: Section references and Page nos. to be inserted
B5: Facility Information | H5: 2 | K5: Sections and Subjects may require adjustment by individual operators to meet specific reporting requirements as defined in the sites Permit(s)
B6: Operational Data | H6: 4
B7: Operational Summary | H7: 5
B8: Performance Form 1 | H8: 6
B9: Energy Form 1 | H9: 7
B10: Permit Compliance | H10: 8
B11: Improvements | H11: 9
B12: Public Liaison | H12: 10
B13: Carbon dioxide and nitrous oxide emissions | H13: 11
B14: Residue Quality | H14: 12
B15: Emissions to Water | H15: 13
B16: Emissions to Air (periodically monitored) | H16: 14
B17: Emissions to Air (continuously monitored) | H17: 15
B18: Hydrogen Chloride emissions | H18: 16
B19: Sulphur Dioxide emissions | H19: 17
B20: Oxides of Nitrogen emissions | H20: 18
B21: Total Organic Carbon emissions | H21: 19
B22: Particulate Matter emissions | H22: 20
B23: Carbon Monoxide emissions | H23: 21
B24: Ammonia emissions | H24: 22
A27: Version Control
A28: Section | B28: Information | H28: Date
A35: Distribution
A36: Copy | B36: Name, Role | H36: No.
A45: This report is required under the Industrial Emissions Directive’s Article 55(2) requirements on reporting and public information on waste incineration plants and co-incineration plants, which require the operator to produce an annual report on the functioning and monitoring of the plant and make it available to the public.

Sheet Operational Data
A1: =+'Cover Page'!$B$29 -> Annual Performance Report 2024 | E1: =+'Cover Page'!$B$33 -> Wolverhampton Energy from Waste Facility
A3: Operational Data
A4: Plant Size | B4: 118000 | D4: tonnes pa | F4: MWth | H4: MWe | J4: Notes:
A5: No. of combustion lines | B5: 2 | D5: No. of Turbines: | F5: 1 | J5: * - RDF to include SRF
J6: ** - Combusted tonnage = tonnes delivered in period + (tonnes in bunker at start of period – tonnes in bunker at end of period), or equivalent calculation depending on plant type
A7: Waste types received | B7: Unit | C7: Q1 | D7: Q2 | E7: Q3 | F7: Q4 | G7: Year Total | H7: %
A8: Household / Local Authority | B8: tonnes | C8: 18366 | D8: 17556 | E8: 17939 | F8: 17744 | G8: =SUM(C8:F8) -> 71605 | H8: =IF(G8>0,G8/$G$18,"-") -> 0.7936974184
A9: Commercial & Industrial | C9: 3325 | D9: 4757 | E9: 5156 | F9: 5374 | G9: =SUM(C9:F9) -> 18612 | H9: 0.2063025816 | J9: *** - CHP plants only
A10: Hazardous | C10: 0 | D10: 0 | E10: 0 | G10: 0 | H10: - | J10: **** Availability Definition: 'the availability of a line is to be calculated by the number of hours the line reported Continuously Monitored emission levels to the Regulator through the calendar year divided by the total number of hours in that year. The overall plant availability is calculated as the Mean of all lines in the plant. For clarity this includes periods of abnormal operation.' Rationale: The primary function of an Energy from Waste facility is the disposal of waste. It follows therefore that the availability of a plant is determined by the period of time a facility spends undertaking this activity.
A11: Clinical | C11: 0 | D11: 0 | E11: 0 | G11: 0 | H11: -
A12: Waste wood (biomass) | C12: 0 | D12: 0 | E12: 0 | G12: 0 | H12: -
A13: Refuse Derived Fuel * - H'hold/LA | C13: 0 | D13: 0 | E13: 0 | G13: =SUM(C13:F13) -> 0 | H13: -
A14: Refuse Derived Fuel * - C&I | C14: 0 | D14: 0 | E14: 0 | G14: 0 | H14: -
A15: Other [Please specify] | C15: 0 | D15: 0 | E15: 0 | G15: 0 | H15: -
A16: Other [Please specify] | C16: 0 | D16: 0 | E16: 0 | G16: 0 | H16: -
A17: Other [Please specify] | C17: 0 | D17: 0 | E17: 0 | G17: 0 | H17: -
A18: Total waste received | C18: =SUM(C8:C17) -> 21691 | D18: =SUM(D8:D17) -> 22313 | E18: =SUM(E8:E17) -> 23095 | F18: =SUM(F8:F17) -> 23118 | G18: 90217
A19: Rejected Waste | C19: 0 | D19: 0 | E19: 0 | F19: 0 | G19: =SUM(C19:F19) -> 0 | H19: =IF(G19>0,G19/$G$18,"-") -> -
A20: Unprocessed waste transferred out | C20: 0 | D20: 0 | E20: 0 | F20: 165 | G20: =SUM(C20:F20) -> 165 | H20: =IF(G20>0,G20/$G$18,"-") -> 0.001828923595
A21: Total waste combusted ** | C21: 20902 | D21: 23072 | E21: 20935 | F21: 23463 | G21: =SUM(C21:F21) -> 88372
J22: Password for protected cells A password has been set to prevent accidental editing of cells with formulae. If you still need to make an edit for some reason then the password = 1234
A23: Energy Usage / Export | B23: Unit | C23: Q1 | D23: Q2 | E23: Q3 | F23: Q4 | G23: Year Total | H23: KWh/te
A24: Power Generated | B24: MWh | C24: 1468 | D24: 10040 | E24: 8532 | F24: 1056 | G24: =SUM(C24:F24) -> 21096 | H24: =IF(G24>0,G24*1000/$G$21,"-") -> 238.718146
A25: Power Exported | C25: 0 | D25: 6078 | E25: 5886 | F25: 0 | G25: =SUM(C25:F25) -> 11964 | H25: =IF(G25>0,G25*1000/$G$21,"-") -> 135.3822478
A26: Power Used on site | C26: 0 | D26: 0 | E26: 0 | F26: 0 | G26: =SUM(C26:F26) -> 0 | H26: =IF(G26>0,G26*1000/$G$21,"-") -> -
A27: Power Imported | C27: 0 | D27: 0 | E27: 0 | F27: 0 | G27: 0 | H27: =IF(G27>0,G27*1000/$G$21,"-") -> -
A28: Parasitic Load | B28: % | C28: =IF(C24>0,1-C25/(C24+C27),"-") -> 1 | D28: =IF(D24>0,1-D25/(D24+D27),"-") -> 0.3946215139 | E28: =IF(E24>0,1-E25/(E24+E27),"-") -> 0.3101265823 | F28: =IF(F24>0,1-F25/(F24+F27),"-") -> 1 | G28: =IF(G24>0,1-G25/(G24+G27),"-") -> 0.4328782708
A29: Thermal Energy Produced *** | B29: MWh | G29: =SUM(C29:F29) -> 0 | H29: =IF(G29>0,G29*1000/$G$21,"-") -> -
A30: Thermal Energy Exported *** | G30: 0 | H30: =IF(G30>0,G30*1000/$G$21,"-") -> -
A31: R1 value (if applicable) | B31: R1
A33: Waste Disposal & Recovery | B33: Unit | C33: Q1 | D33: Q2 | E33: Q3 | F33: Q4 | G33: Year Total | H33: % inputs
A34: APC Residues - produced | B34: tonnes | C34: 654 | D34: 803 | E34: 745 | F34: 4345 | G34: =SUM(C34:F34) -> 6547 | H34: =IF(G34>0,G34/$G$21,"-") -> 0.07408455167
A35: IBA - produced | C35: 3735 | D35: 4206 | E35: 3964 | F35: 661 | G35: 12566 | H35: =IF(G35>0,G35/$G$21,"-") -> 0.1421943602
A36: Metals recycling | C36: 359 | D36: 56 | E36: 0 | F36: 0 | G36: =SUM(C36:F36) -> 415 | H36: 0.004696057575
A37: Other | C37: 0 | D37: 0 | E37: 0 | F37: 0 | G37: =SUM(C37:F37) -> 0 | H37: -
A38: Other | C38: 0 | D38: 0 | E38: 0 | F38: 0 | G38: 0 | H38: -
A39: Other | C39: 0 | D39: 0 | E39: 0 | F39: 0 | G39: 0 | H39: -
A41: Raw Material Usage | B41: Unit | C41: Q1 | D41: Q2 | E41: Q3 | F41: Q4 | G41: Year Total | H41: kg or Ltr /te
A42: Mains Water | B42: ltrs | C42: 23894 | D42: 23057 | E42: 26820 | F42: 23551 | G42: =SUM(C42:F42) -> 97322 | H42: =IF(G42>0,G42/$G$21,"-") -> 1.101276422
A43: Other Water | B43: ltrs | G43: 0 | H43: =IF(G43>0,G43/$G$21,"-") -> -
A44: Ammonia | B44: kgs | C44: 0 | D44: 0 | E44: 0 | F44: 0 | G44: 0 | H44: -
A45: Urea | B45: kgs | C45: 32000 | D45: 54000 | E45: 41000 | F45: 38000 | G45: =SUM(C45:F45) -> 165000 | H45: 1.867107229
A46: Activated Carbon | B46: kgs | C46: 10000 | D46: 4000 | E46: 11000 | F46: 7000 | G46: 32000 | H46: 0.3621056443
A47: Lime / hydrated lime | B47: kgs | C47: 145000 | D47: 198000 | E47: 173000 | F47: 203000 | G47: 719000 | H47: 8.136061196
A48: Fuel oil | B48: ltrs | C48: 35607 | D48: 37550 | E48: 28810 | F48: 8460 | G48: 110427 | H48: 1.24957
A49: Gas | B49: cuf | C49: 0 | D49: 0 | E49: 0 | F49: 0 | G49: 0
A50: Other | C50: 0 | D50: 0 | E50: 0 | F50: 0 | G50: 0
A52: Summary | B52: Line/Unit | C52: Q1 | D52: Q2 | E52: Q3 | F52: Q4 | G52: Year Total | I52: Hrs in year
A53: Availability of waste combustion by line, hrs **** | B53: 1 | C53: 1611.5 | D53: 2015 | E53: 1714.75 | F53: 1719 | G53: =SUM(C53:F53) -> 7060.25 | H53: =+G53/$I$53 -> 0.8059646119 | I53: 8760 | J53: Change this figure to 8784 in a leap year
B54: 2 | C54: 1556.5 | D54: 1548 | E54: 1538.75 | F54: 1981 | G54: 6624.25 | H54: =+G54/$I$53 -> 0.7561929224
B55: 3 | C55: - | D55: - | E55: - | F55: - | G55: 0 | H55: 0
B56: 4 | C56: - | D56: - | E56: - | F56: - | G56: 0 | H56: 0
B57: 5 | C57: - | D57: - | E57: - | F57: - | G57: =SUM(C57:F57) -> 0 | H57: 0
A58: Overall Availability, mean avg. of all lines, hrs | G58: =AVERAGE(G53:G54) -> 6842.25 | H58: 0.7810787671
A59: Hours of turbine operations, hrs | B59: 1 | C59: 274 | D59: 2023 | E59: 1751 | F59: 269.5 | G59: 4317.5 | H59: 0.4928652968
A60: Hours of turbine operations, hrs | B60: 2 | C60: - | D60: - | E60: - | F60: - | G60: 0 | H60: 0
A61: Hours of heat / steam export | C61: - | D61: - | E61: - | F61: - | G61: 0 | H61: =IF(B61>0,G60/I53,"n/a") -> n/a
A62: Net Calorific Value of waste | B62: MJ/kg | C62: 7.143 | D62: 8.188 | E62: 8.804 | F62: 7.634
A63: Abnormal Events | B63: qty. | C63: 2 | D63: 2 | E63: 4 | F63: 0 | G63: 8 | H63: =IF(G63>0,"yes","no") -> yes
A64: Abnormal operation | B64: hours | C64: 4 | D64: 8 | E64: 15 | F64: 0 | G64: 27 | H64: =+(G64)/I53 -> 0.003082191781
A65: Permit Breaches | B65: qty. | C65: 2 | D65: 1 | E65: 0 | F65: 2 | G65: 5 | H65: =IF(G65>0,"yes","no") -> yes

Sheet Operational Summary
A1: =+'Cover Page'!$B$29 -> Annual Performance Report 2024 | E1: =+'Cover Page'!$B$33 -> Wolverhampton Energy from Waste Facility
A3: Summary of Plant Operations and Maintenance during the reporting year | K3: Notes:
A5: In 2024 tubes leaks have been the main reason for boiler unavailability at the Wolverhampton plant. Boiler 1 availability = 80.38% Boiler 2 availability = 75.41% Steam Turbine availability = 49.15%. Planned Outage Started on Monday 9th September 2024 and completed in approximately 26 days. Boiler Works: Due to the amount of tubes leaks throughout 2024 we done a large amount of NDT to discover the thickness of the tubes and replace if below 3.2mm thick. Boiler 1 we replaced 1 x superheater pendant which consist of 37 tubes 9m in length to stainless steel tubing. Boiler 2 we replace 2 x superheater pendants to stainless steel tube. Boiler 1 economizer we replaced 135 bends on the top economizer bank. Throughout Boiler 1 & 2 we grit blasted to remove surface contamination. Also on Both boilers large amounts of refractories was replaced and renewed. The grate on both boilers was removed, inspected and overhauled. Turbine Works: After various electrical tests on the generator we discovered that we had a high PD reading on the stator, the decision was made to send the rotor and stator away to be overhauled. Turbine returned to site on Wednesday 20th November 2024. Baghouse Works: Large amounts of grit blasting throughout Both streams including all cells. We replaced 3 x cells of bag filters on each steam which consist of 120 filters per cell. Replated a number of cell hoppers which cause air ingress and then eventually blocks the cell. General maintenance on all screws and rotary valves including replacing stream 2’s redler chain. Various Other Works: Start up burners overhauled. Stack inspected. DCS serviced. Sootblowers inspected and overhauled. ID, FD & ACC Fans inspected and serviced. Unit 1 & 2 hydraulic packs serviced and various hoses replaced. Steam noise baffles inspected. All safety valves overhauled and tested. HV inspections and electrical safety circuits tested. All pressure parts inspected. All instruments throughout plant and turbine calibrated. Numerous valves replaced throughout plant. New transition chute fitted to boiler 2 ash discharger. | K5: Include summary of key operational and/or maintenance activity undertaken in the year, such as any major component upgrades and/or replacements
A29: Summary of Residue Handling for the reporting year
A31: Two main sources of residue arise from the operation of the plant: - Incinerator Bottom ash (IBA) (which also includes ferrous metals discharged within the ash) - Air Pollution Control residues (APCr) Residues from the flue gas treatment process (APCr) are discharged into an enclosed system which feed into double-skinned heavy-duty bags prior to removal from site for controlled treatment and disposal. These residues account for under 5% of the total weight of all refuse processed by the facility. The residues were sent to Augean South Ltd's Kings Cliffe East Northants Resource Management Facility (YP3138XB). These residues are ultimately disposed of in specialist landfill. Incinerator Bottom Ash (IBA) is discharged from the lower end of each grate into a water filled ash discharger, where it is quenched and then ejected onto a conveyor system. The resulting materials are stored in the storage bunkers prior to removal from site for recycling - the storage capacity for bottom ash residues is sufficient to ensure 4 days storage. IBA is transferred offsite for further treatment and processing sites regularly between Mondays and Fridays and are scheduled to ensure sufficient storage capacity is maintained at all times. Collections are available at weekends if operational conditions require this facility. Bottom ash from North Midlands Operations Ltd is currently being sent to Johnsons Aggregates & Recycling Ltd Midlands Urban Mine in Ilkeston (MP3430AM) and Bunny site (DP3493CT). At these sites, the ferrous and trace metals is removed, and the remaining material being further processed into usable aggregate in a zero to landfill process. | K31: Include in here a summary of residue handling regimes and destinations
A54: =+'Cover Page'!C39 -> 2024 | B54: Plant shut-downs
A55: Date | B55: Reason for shut-down | K55: Provide a very brief reason for plant shut-down e.g. "Shut-down prior to major outage"; "Emergency shut-down due to boiler tube leak" There is no need to include periods of hot-standby here (e.g. to clear feed chute hopper blockages). For clinical waste incinerators which require regular shut-downs for boiler cleaning, there is no need to record these here.
A56: 2024-02-17 | B56: Boiler 1 & 2 Off ready to install turbine after major overhaul & reblade
A57: 2024-03-15 | B57: Boiler 2 tube leak offline. Online 23/03/2024
A58: 2024-03-19 | B58: Boiler 1 tube leak offline. Online25/03/2024
A59: 2024-04-03 | B59: Boiler 2 tube leak offline. Online 09/04/2024
A60: 2024-04-15 | B60: Boiler 1 & 2 Off tube leak. Online 20/04/2024
A61: 2024-05-05 | B61: Boiler 2 tube leak. Online 10/05/2024
A62: 2024-05-17 | B62: Boiler 2 tube leak. Online 25/05/2024
A63: 2024-07-09 | B63: Boiler 2 tube leak. Online 12/07/2024
A64: 2024-08-05 | B64: Boiler 2 tube keak.Online 10/08/2024
A65: 2024-09-07 | B65: Start of annual outage
A66: 2024-10-02 | B66: Outage Completed
A67: 2024-10-26 | B67: Boiler 1 offline due to redler. Online 28.10.2024
A68: 2024-11-20 | B68: Boiler 1 & Boiler 2 offline to carry out baghouse repairs. Boilers online 26/11/2024
A69: 2024-12-24 | B69: Boiler 1 offline.Online 01/01/2025

Sheet Perf. Form 1
A1: =+'Cover Page'!C39 -> 2024 | B1: Annual Reporting Performance Form 1
A3: =+'Cover Page'!B31 -> Permit EPR/HP3349QK | F3: Operator: | G3: =+'Cover Page'!B37 -> North Midlands Operations Ltd
A4: Facility: | B4: =+'Cover Page'!B33:I33 -> Wolverhampton Energy from Waste Facility | F4: Form: | G4: Performance 1
A6: Reporting Period from: | D6: 1st January 2024 | F6: to: | G6: 31st December 2024
A8: =+A1 -> 2024 | B8: Annual Reporting of Waste Disposal and Recovery
A9: Waste Description | C9: Disposal Route(s) | E9: Disposal Tonnes | G9: Recovery Tonnes | I9: % / tonne of waste incinerated
A10: 1) Hazardous Wastes
A11: APC Residues | C11: D13 | E11: ='Operational Data'!G34 -> 6547 | G11: 0 | I11: =IF((E11+G11)>0,(E11+G11)/'Operational Data'!$G$21, "-") -> 0.07408455167
I12: =IF((E12+G12)>0,(E12+G12)/'Operational Data'!$G$21, "-") -> -
I13: =IF((E13+G13)>0,(E13+G13)/'Operational Data'!$G$21, "-") -> -
I14: =IF((E14+G14)>0,(E14+G14)/'Operational Data'!$G$21, "-") -> -
A15: Total Hazardous Waste | E15: =SUM(E11:F14) -> 6547 | G15: =SUM(G11:H14) -> 0 | I15: =IF((E15+G15)>0,(E15+G15)/'Operational Data'!$G$21, "-") -> 0.07408455167
A17: 2) Non-Hazardous Wastes
A18: IBA | C18: R04 | G18: ='Operational Data'!G35 -> 12566 | I18: =IF((E18+G18)>0,(E18+G18)/'Operational Data'!$G$21, "-") -> 0.1421943602
A19: Ferrous Metal | C19: R04 | G19: ='Operational Data'!G36 -> 415 | I19: =IF((E19+G19)>0,(E19+G19)/'Operational Data'!$G$21, "-") -> 0.004696057575
A20: Process Water | G20: 326 | I20: =IF((E20+G20)>0,(E20+G20)/'Operational Data'!$G$21, "-") -> 0.003688951252
I21: =IF((E21+G21)>0,(E21+G21)/'Operational Data'!$G$21, "-") -> -
I22: =IF((E22+G22)>0,(E22+G22)/'Operational Data'!$G$21, "-") -> -
A23: Total Non-Hazardous Waste | E23: =SUM(E18:F22) -> 0 | G23: =SUM(G18:H22) -> 13307 | I23: =IF((E23+G23)>0,(E23+G23)/'Operational Data'!$G$21, "-") -> 0.150579369
A24: TOTAL WASTE | E24: =+E23+E15 -> 6547 | G24: =+G23+G15 -> 13307 | I24: =IF((E24+G24)>0,(E24+G24)/'Operational Data'!$G$21, "-") -> 0.2246639207
A26: Operator’s comments :
A27: Process water recirculated where possible, then discharged as trade effluent to foul sewer for treatement.
A31: =+A1 -> 2024 | B31: Annual Reporting of Water and Other Raw Material Usage
A32: Raw Material | E32: Usage | G32: Unit | H32: Specific Usage | J32: Unit
A33: Mains Water | E33: =+'Operational Data'!G42/1000 -> 97.322 | G33: m3 | H33: =IF(E33>0,E33/'Operational Data'!$G$21,"-") -> 0.001101276422 | J33: m3/te
A34: Total Water | E34: =+'Operational Data'!G43+'Operational Data'!G42/1000 -> 97.322 | G34: m3 | H34: =IF(E34>0,E34/'Operational Data'!$G$21,"-") -> 0.001101276422 | J34: m3/te
A35: Urea / Ammonia | E35: =+'Operational Data'!G45 -> 165000 | G35: kg | H35: =IF(E35>0,E35/'Operational Data'!$G$21,"-") -> 1.867107229 | J35: kg/te
A36: Activated Carbon | E36: =+'Operational Data'!G46 -> 32000 | G36: kg | H36: =IF(E36>0,E36/'Operational Data'!$G$21,"-") -> 0.3621056443 | J36: kg/te
A37: Lime / hydrated lime / Sodium Bicarb. | E37: =+'Operational Data'!G47 -> 719000 | G37: kg | H37: =IF(E37>0,E37/'Operational Data'!$G$21,"-") -> 8.136061196 | J37: kg/te
A39: Operator’s comments :
A43: =+A31 -> 2024 | B43: Annual Reporting of other performance indicators
A44: Parameter | C44: Results by Line
C45: A1 | D45: A2 | E45: A3 | F45: A4 | G45: A5 | I45: Turbine 1 | J45: Turbine 2
A46: Operating hours for the year, hours | C46: 7060.25 | D46: 6624.25
A47: Number of periods of abnormal operation, qty. | C47: 3 | D47: 5
A48: Cumulative hours of abnormal operation for this year, hours | C48: 11 | D48: 16
A50: Operator’s comments :
A54: Signed: | G54: Date:

Sheet Energy Form 1
A1: =+'Cover Page'!C39 -> 2024 | B1: Annual Reporting of Energy Usage/Export
A3: =+'Cover Page'!B31 -> Permit EPR/HP3349QK | F3: Operator: | G3: =+'Cover Page'!B37 -> North Midlands Operations Ltd
A5: Facility: | B5: =+'Cover Page'!B33:I33 -> Wolverhampton Energy from Waste Facility | F5: Form: | G5: Energy 1
A7: Reporting Period from: | D7: =+'Perf. Form 1'!D6:E6 -> 1st January 2024 | F7: to: | G7: =+'Perf. Form 1'!G6:H6 -> 31st December 2024
A9: Energy Source | D9: Energy Usage | F9: Unit | G9: Specific Usage (KWh/tonne incinerated
A10: Electricity Produced | D10: =+'Operational Data'!G24 -> 21096 | F10: MWh | G10: =+'Operational Data'!H24 -> 238.718146
A11: Electricity Imported | D11: =+'Operational Data'!G27 -> 0 | F11: MWh | G11: =+'Operational Data'!H27 -> -
A12: Electricity Exported | D12: =+'Operational Data'!G25 -> 11964 | F12: MWh | G12: =+'Operational Data'!H25 -> 135.3822478
A13: Gas Oil | D13: 143667 | F13: tonnes
A14: Steam/hot water exported | D14: =+'Operational Data'!G30 -> 0 | F14: GWh | G14: =+'Operational Data'!H30 -> -
A18: Operator’s comments :
A29: Signed: | G29: Date:

Sheet Improvements
A1: =+'Cover Page'!$B$29 -> Annual Performance Report 2024 | E1: =+'Cover Page'!$B$33 -> Wolverhampton Energy from Waste Facility
A3: Summary of Plant Improvements
A5: Summary of any efficiency improvements that have been completed within the year.
A6: Installation of new Parker CDAS LE130 air dryer on 16/09/2024. The old Parker MSX104 air dryer had a purge rate of 20% @ 7bar, whereas the new air dryer has a purge rate of 3% @ 7bar. This will save an estimated £27,280.00 per year. The replacement of fluorescent with LED lighting throughout the plant is about 90% complete and on going. Fitting of flow sensors on urea lines and active carbon lines in order for us to tell if there is a blockage in the lines.
A16: Summary of any permit improvement conditions that have been completed within the year and the resulting environmental benefits.
A17: IC1 - report to determine the extent to which the plant can minimise NOx emissions below current daily average - was completed and submitted. Associated trials performed in 2023.
A27: Summary of any changes to the plant or operating techniques which required a variation to the permit and a summary of the resulting environmental impact.
A38: Summary of any other improvements made to the plant or planned to be made and a summary of the resulting environmental benefits.
A39: The installation of a fire suppression system is being planned for 2025; this should significantly reduce the potential environmental impact of a fire. A survey of the legacy drainage system was completed in 2024 to improve our records. Areas for repair and upgrade were identified and this work carried out. This should reduce the risk of fugitive emissions to surfacewater.

Sheet Permit Compliance
A1: =+'Cover Page'!$B$29 -> Annual Performance Report 2024 | E1: =+'Cover Page'!$B$33 -> Wolverhampton Energy from Waste Facility
A3: Summary of Permit Compliance
A5: Compliance with permit limits for continuously monitored pollutants
A7: The plant met its emission limits as shown in the table below:
A8: Substance | C8: Percentage time compliant during operationNote 1 | L8: Notes:
C9: Half-hourly limit | F9: Daily limit | L9: Note 1: Please report to 2 decimal places, i.e. xx.xx% Note 2: Please enter into this table any permit non-compliances that the EA has given a CCS score for. Please also enter any other non-compliances which you have notified to the EA (e.g. ELV exceedances) but which have not yet been assessed by the EA. There is no need to enter any notifications which were subsequently assessed by the EA not to be permit breaches. Note 3: Please enter information here (rather than just referencing the notifications that were sent to the EA) including where relevant the incineration line reference, pollutant and value of the measured result for any ELV exceedances.
A10: Particulates | C10: =('Operational Data'!I53-1)/'Operational Data'!I53 -> 0.9998858447 | F10: =('Operational Data'!I53 - 24)/'Operational Data'!I53 -> 0.997260274
A11: Oxides of nitrogen | C11: ='Operational Data'!I53/'Operational Data'!I53 -> 1 | F11: ='Operational Data'!I53/'Operational Data'!I53 -> 1
A12: Sulphur dioxide | C12: ='Operational Data'!I53/'Operational Data'!I53 -> 1 | F12: ='Operational Data'!I53/'Operational Data'!I53 -> 1
A13: Carbon monoxide | C13: =('Operational Data'!I53-1.833)/'Operational Data'!I53 -> 0.9997907534 | F13: ='Operational Data'!I53/'Operational Data'!I53 -> 1
A14: Total organic carbon | C14: =('Operational Data'!I53-1.5)/'Operational Data'!I53 -> 0.9998287671 | F14: ='Operational Data'!I53/'Operational Data'!I53 -> 1
A15: Hydrogen chloride | C15: =('Operational Data'!I53-0.5)/'Operational Data'!I53 -> 0.9999429224 | F15: =('Operational Data'!I53-24)/'Operational Data'!I53 -> 0.997260274
A16: Hydrogen fluoride | C16: ='Operational Data'!I53/'Operational Data'!I53 -> 1 | F16: ='Operational Data'!I53/'Operational Data'!I53 -> 1
A17: Ammonia | C17: N/A | F17: ='Operational Data'!I53/'Operational Data'!I53 -> 1
A19: Summary of non-compliances under the permit Note 2
A20: Date | B20: Summary of non-compliance Note 3 | D20: Reason | G20: Measures taken to prevent reoccurrence | H20: CCS score if applicable*
H21: Impact | I21: Root cause
A22: 2024-03-11 | B22: A1 TOC Half-Hour Exceedance (113.74mg/m3) | E22: DCS Processor failed causing O2 reading to fail stopping feeder and grate which coincided with the removal of boiler instruments ready for the bang and clean | G22: Boiler instruments refitted. DCS Processor rebooted and returned to service. | H22: C4 | I22: N/A
A23: 2024-03-11 | B23: A2 TOC Half-Hour Exceedance (28.94mg/m3) | E23: DCS Processor failed causing O2 reading to fail stopping feeder and grate which coincided with the removal of boiler instruments ready for the bang and clean | G23: Boiler instruments refitted. DCS Processor rebooted and returned to service. | H23: C4 | I23: N/A
A24: 2024-04-04 | B24: A1 TOC Half-Hour Exceedance (24.96 mg/m3) | E24: VOC exceeded due to unburnt poor waste and molten waste across grate | G24: Increased frequency of waste inspections | H24: C4 | I24: N/A
A25: 2024-06-02 | B25: A1 HCl Half-Hour (178.67 mg/m3) and Daily Exceedance (28.1mg/m3) | E25: Issues with management of abatement equipment - lime turbine spares. | G25: Introduction of effective inhouse cleaning method for spares. | H25: C3 | I25: Management Failure
A26: 2024-10-03 | B26: A1 CO 11x10min Exceedances 15:40 to 15:49 466.08mg/m3, 16:10 to 16:19 316.04mg/m3, 16:20 to 16:29 301.11mg/m3, 17:10 to 17:19 157.96mg/m3, 20:40 to 20:49 187.78mg/m3, 20:50 to 20:59 222.52mg/m3, 21:40 to 21:49 219.49mg/m3, 23:10 to 23:19 389.51mg/m3, 23:20 to 23:29 878.83mg/m3, 23:30 to 23:39 583.59mg/m3, 23:40 to 23:49 682.72mg/m3 | E26: Intermittent fault with ballcock on ash discharge water level causing intermittent loss of seal on boiler. | G26: Fixed issue. Provided refresher training on start-up activity checklist. | H26: C4 | I26: N/A
A27: 2024-10-03 | B27: A1 PM Half-Hour (88.78mg/m3) and Daily Exceedance | C27: Daily | E27: Damage to bag filter detected on return to service after outage. | G27: Provided refresher training on start-up activity checklist. | H27: C4 | I27: N/A
A28: 2024-12-19 | B28: A1 PM Half-Hour (31.30mg/m3) Exceedance | C28: Daily | E28: 11KV incomer trip caused plant trip. | G28: Fixed underlying generator issues. | H28: C4 | I28: N/A
A29: *If the Environment Agency (EA) has given a Compliance Classification Scheme (CCS) score due to a permit non-compliance it should be entered here (CCS4 = No impact; CCS3 = Minor impact; CCS2 = Significant impact; CCS1 = Major impact). If the EA has not yet assessed a non-compliance which you have notified to them, these columns should be left blank. Enter N/A if no score was given for the root cause.
A31: Summary of any complaints received and actions to taken to resolve them.
A32: Date | B32: Summary of complaint [including Line/Reference] | E32: Reason (including whether substantiated by the operator or the EA) | H32: Measures taken to prevent reoccurrence
A33: NA | B33: NA | E33: NA | H33: NA

Sheet Public Liasion
A1: =+'Cover Page'!$B$29 -> Annual Performance Report 2024 | E1: =+'Cover Page'!$B$33 -> Wolverhampton Energy from Waste Facility
A3: Details of Public & Stakeholder Liaison
A5: Summary of events held during the reporting year.
A6: Date | C6: Description
A7: Jan 24-Dec 24 | C7: Routine liaison meetings with CWC on health, safety, environmental and operational matters.
A16: List of events planned for next year
A17: Date | C17: Description
A18: Jan 25-Dec 25 | C18: Continue to hold routine liaison meetings with CWC on health, safety, environmental and operational matters.
A29: If you wish to be involved in the public liaison programme, please contact _________________

Sheet CO2 N2O
A1: =+'Cover Page'!$B$29 -> Annual Performance Report 2024 | C1: =+'Cover Page'!$B$33 -> Wolverhampton Energy from Waste Facility
A3: Carbon dioxide emissions and biogenic content of waste inputs | F3: Notes:
A5: Carbon dioxide emissions (all types of plant)
B6: Annual mass of carbon dioxide released | C6: tonnes | D6: 83323
B7: Annual mass of carbon dioxide released per tonne of waste burned | C7: t CO2 / t waste | D7: =D6/'Operational Data'!G21 -> 0.9428665188
B8: Annual mass of carbon dioxide released per MWh of energy exported | C8: t CO2 / MWh export | D8: =D6/'Operational Data'!G25 -> 6.964476764
B9: Description of how annual carbon dioxide mass emission has been calculated. See Note 1 | C9: CEMS CO2 Monitoring | F9: Note 1: All permits require operators to continuously monitor CO2 to EN14181 and flow to BS EN 16911-2 (unless otherwise agreed in writing). Operators must therefore use the results from these instruments to calculate their annual CO2 emissions. Where an operator does not have a flow meter calibrated to BS EN 16911-2, the averaged flow measurement from that year's periodic monitoring can be used instead. If the plant does not have calibrated CO2 CEMS, a suitably justified emissions factor can be used.
A10: Nitrous oxide emissions (only plants which use ammonia or urea to abate NOx emissions)
B11: Annual mass emissions of nitrous oxide | C11: tonnes N2O | D11: 8.8
B12: Description of how annual nitrous oxide mass emission has been calculated See Note 2 | C12: CEMS CO2 Monitoring | F12: Note 2: All permits require operators to continuously monitor N2O to EN14181 and flow to BS EN 16911-2, unless otherwise agreed in writing. Operators must therefore use the results from these instruments to calculate their annual N2O emissions. Where an operator does not have a flow meter calibrated to BS EN 16911-2, the averaged flow measurement from periodic monitoring can be used instead. If the plant does not have calibrated N2O CEMS, data from periodic monitoring or a suitably justified emissions factor can be used instead.
A13: Total annual carbon dioxide + nitrous oxide emissions. See Note 3. | C13: tonnes CO2e | D13: =D6+(D11*265) -> 85655 | F13: Note 3: Total annual carbon dioxide and nitrous oxide emissions reported as carbon dioxide equivalent where 1 tonne nitrous oxide is equivalent to 265 tonnes carbon dioxide.
A14: Biogenic CO2 emissions (See Note 4) | F14: Note 4: Only plants combusting residual municipal waste, refuse derived fuel or solid recovered fuel need complete this section.
B15: Percentage of total carbon dioxide emissions arising from biogenic waste | C15: % | D15: 0.5412
B16: No. of measurements undertaken | C16: Number | D16: 1
B17: Description of how percentage biogenic carbon dioxide emissions have been measured or calculated. See Note 5 | C17: Waste compositional analysis. | F17: Note 5: The results from C14 sampling should be used if this is carried out at the plant (either via an installed sampler or from spot samples). Otherwise, as an approximation (and in lieu of any more accurate metrics which may be developed in future), the measured or estimated biogenic fraction by net calorific value (see Note 6) can be assumed to be the same as the biogenic CO2 fraction of the total CO2 emissions from the plant.
A18: Biogenic fraction of waste feedstock (See Note 4)
B19: Yearly average biogenic percentage of the waste by net calorific value (NCV) | C19: % | D19: 0.5412
B20: Description of how biogenic percentage (by NCV) has been calculated or estimated. See Note 6 | C20: Waste compositional analysis. | F20: Note 6: If C14 sampling is carried out at the plant, the methodology set out in the embedded document entitled "Renewable Energy Association Energy Content of Fuels - Description of Method" embedded below can be used to calculate the biogenic percentage by net calorific value. Otherwise, data from waste sampling or BIOMA software can be used; or if none of these are available, an estimated figure with justification or a figure assumed on the basis of up-to-date industry data can be used.
B21: Yearly average biogenic percentage of the waste by mass | C21: % | D21: 0.5412
B22: If waste sampling undertaken, no. of samples used to ascertain average biogenic percentages above | C22: Number | D22: 1
B23: Description of how biogenic percentage (by mass) has been calculated or estimated. See Note 7 | C23: In accordance with Ofgem-approved fuel measurement and sampling plan. | F23: Note 7: Where available, data from waste sampling should be used; otherwise, an estimated figure with justification can be used, or a figure assumed on the basis of up-to-date industry data.
B25: Comments:

Sheet Residue Quality
A1: =+'Cover Page'!$B$29 -> Annual Performance Report 2024 | E1: =+'Cover Page'!$B$33 -> Wolverhampton Energy from Waste Facility
A3: Residue Quality Monitoring Requirements
A5: Summary of monitoring undertaken and compliance
A6: IBA and APCr are tested in accordance with the site's permit.
A8: IBA is also sampled and analysed in accordance with the ESA protocol.
A13: Commentary on any specific events
A14: Date & Event | C14: Description
A27: Residue Quality Monitoring Results
A28: Parameter (unit) | C28: Limit* | D28: Normal Operation
D29: Bottom ash | F29: APC Residues
A30: Loss on Ignition (average %) | C30: <5%
A31: Total Organic Carbon (average %) | C31: <3% | D31: 0.016
A32: No. of Assessments Undertaken | C32: --- | D32: 28 | F32: 4
A33: No. of Hazardous Results | C33: --- | D33: 0
A34: * The permit will specify a limit of either 5% loss on ignition or 3% total organic carbon. If both are measured anyway, please enter the results here, even where the limit does not apply.
A36: Comments :
A37: Only TOC ELV stated on the Permit.

Sheet Water
A1: =+'Cover Page'!$B$29 -> Annual Performance Report 2024 | E1: =+'Cover Page'!$B$33 -> Wolverhampton Energy from Waste Facility
A3: Emissions to Water
A5: Summary of monitoring undertaken and compliance
A6: Waste water arising from the process is neutralised and recycled for use in process as far as is practicible in order to minimise the quantity released to sewer.
A8: Annual sample taken and analysed. All results below limits given in discharge consent.
A13: Commentary on any specific events
A14: Date & Event | C14: Description
A22: Emissions to Water / Sewer
A23: Parameter | D23: Monitoring Frequency | F23: Limit | G23: Target | H23: Max. | I23: Average
A24: pH | D24: Annual | F24: 6-10 | G24: N/A | H24: 8.5 | I24: 8.5
A25: Suspended Solids (mg/l) | D25: Annual | F25: 0-400 | G25: N/A | H25: 40 | I25: 40
A26: Cadmium (total) as Cd (mg/l) | D26: Annual | F26: N/A | G26: N/A | H26: 0.00029 | I26: 0.00029
A27: Chromium (total) as Cr (mg/l) | D27: Annual | F27: N/A | G27: N/A | H27: 0.203 | I27: 0.203
A28: Lead (total) as Pb (mg/l) | D28: Annual | F28: N/A | G28: N/A | H28: 0.0024 | I28: 0.0024
A29: Nickel (total) as Ni (mg/l) | D29: Annual | F29: N/A | G29: N/A | H29: 0.0081 | I29: 0.0081
A30: Zinc (total) as Zn (mg/l) | D30: Annual | F30: 0-5 | G30: N/A | H30: 0.023 | I30: 0.023
A31: Phosphorus (total) as P (mg/l) | D31: Annual | F31: 0-25 | G31: N/A | H31: 0.281 | I31: 0.281
A32: COD 1 hr settled | D32: Annual | F32: 0-800 | G32: N/A | H32: 123 | I32: 123

Sheet Air (periodic)
A1: =+'Cover Page'!$B$29 -> Annual Performance Report 2024 | E1: =+'Cover Page'!$B$33 -> Wolverhampton Energy from Waste Facility
A3: Emissions to Air (periodically monitored)
A5: Summary of monitoring undertaken, standards used and compliance | K5: Notes:
K6: Template may require adjustment for any bespoke monitoring requirements of permit - please also check that all default ELV values, reference periods and the stated oxygen reference value match those for your plant, and edit if necessary!
A9: Results of emissions to air that are periodically monitored - oxygen reference 11%
A10: Substance | C10: Ref. Period | D10: Emission Limit Value | F10: Average | K10: User to add additional tables as necessary, depending on whether quarterly or bi-annual reporting is required for the compliance year
F11: A1 | G11: A2 | H11: A3 | I11: A4 | J11: A5
A12: Hydrogen fluoride | C12: 1 hr | D12: 1 mg/m3 | F12: 0.155 | G12: 0.14
A13: Cd and Tl and their compounds | C13: 0.5-8hrs | D13: 0.02 mg/m3 | F13: 0.0026 | G13: 0.0025
A14: Hg and its compounds | C14: 0.5-8hrs | D14: 0.02 mg/m3 | F14: 0.00785 | G14: 0.00145
A15: Sb, As, Pb, Cr, Co, Cu, Mn, Ni, V and their compounds | C15: 0.5-8hrs | D15: 0.3 mg/m3 | F15: 0.1655 | G15: 0.165
A16: Dioxins & Furans (I-TEQ) | C16: 6-8hrs | D16: 0.06 ng/m3 | F16: 0.024075 | G16: 0.0324
A17: PCBs (WHO-TEQ Humans / Mammals) | C17: 6-8hrs | D17: None set ng/m3 | F17: 0.00504 | G17: 0.002155
A18: PCBs (WHO-TEQ Fish) | C18: 6-8hrs | D18: None set ng/m3 | F18: 0.0002365 | G18: 0.000106
A19: PCBs (WHO-TEQ Birds) | C19: 6-8hrs | D19: None set ng/m3 | F19: 0.01209 | G19: 0.004335
A20: Dioxins & Furans (WHO-TEQ Humans / Mammals) | C20: 6-8hrs | D20: None set ng/m3 | F20: 0.039875 | G20: 0.03165
A21: Dioxins & Furans (WHO-TEQ Fish) | C21: 6-8hrs | D21: None set ng/m3 | F21: 0.04655 | G21: 0.0351
A22: Dioxins & Furans (WHO-TEQ Birds) | C22: 6-8hrs | D22: None set ng/m3 | F22: 0.100925 | G22: 0.0493
A23: Polybrominated dibenzo-dioxins and furans | C23: 6-8hrs | D23: None set ng/m3 | F23: 0.004675 | G23: 0.00172
A24: Anthanthrene | C24: 6-8hrs | D24: None set µg/m3 | F24: <0.002 | G24: <0.003
A25: Benzo(a)anthracene | C25: 6-8hrs | D25: None set µg/m3 | F25: <0.002 | G25: 0.004
A26: Benzo(a)pyrene | C26: 6-8hrs | D26: None set µg/m3 | F26: <0.002 | G26: <0.003
A27: Benzo(b)fluoranthene | C27: 6-8hrs | D27: None set µg/m3 | F27: <0.002 | G27: 0.003
A28: Benzo(b)naptho(2,1-d) thiophene | C28: 6-8hrs | D28: None set µg/m3 | F28: <0.002 | G28: <0.003
A29: Benzo(c)phenanthrene | C29: 6-8hrs | D29: None set µg/m3 | F29: <0.002 | G29: <0.003
A30: Benzo(ghi)perylene | C30: 6-8hrs | D30: None set µg/m3 | F30: <0.002 | G30: 0.003
A31: Benzo(k)fluoranthene | C31: 6-8hrs | D31: None set µg/m3 | F31: <0.002 | G31: <0.003
A32: Cholanthrene | C32: 6-8hrs | D32: None set µg/m3 | F32: <0.002 | G32: <0.003
A33: Chrysene | C33: 6-8hrs | D33: None set µg/m3 | F33: 0.004 | G33: 0.004
A34: Cyclopenta(cd)pyrene | C34: 6-8hrs | D34: None set µg/m3 | F34: <0.002 | G34: <0.003
A35: Dibenzo(ai)pyrene | C35: 6-8hrs | D35: None set µg/m3 | F35: <0.002 | G35: <0.003
A36: Dibenzo(ah)anthracene | C36: 6-8hrs | D36: None set µg/m3 | F36: <0.002 | G36: <0.003
A37: Fluoranthene | C37: 6-8hrs | D37: None set µg/m3 | F37: 0.032 | G37: 0.053
A38: Indeno(123-cd) pyrene | C38: 6-8hrs | D38: None set µg/m3 | F38: <0.002 | G38: <0.003
A39: Naphthalene | C39: 6-8hrs | D39: None set µg/m3 | F39: 0.106 | G39: 0.505
A40: Comments :

Sheet Air (CEMS)
A1: =+'Cover Page'!$B$29 -> Annual Performance Report 2024 | I1: =+'Cover Page'!$B$33 -> Wolverhampton Energy from Waste Facility
A3: Emissions to Air (continuously monitored)
N4: Notes:
A5: Summary of monitoring undertaken, standards used and compliance | N5: Template may require adjustment for any bespoke monitoring requirements of permit
N6: Please check that all default ELV values match those for your plant and edit if necessary!
N7: Report to 1 decimal place
A11: Results of emissions to air that are continuously monitored (maximum and average values for each line) - oxygen reference 11%
A12: Substance | B12: Reference Period | C12: Emission Limit Value | D12: A1 | F12: A2 | H12: A3 | J12: A4 | L12: A5
D13: Max. | E13: Avg. | F13: Max. | G13: Avg. | H13: Max. | I13: Avg. | J13: Max. | K13: Avg. | L13: Max. | M13: Avg.
A14: Oxides of nitrogen | B14: Daily mean | C14: 180 mg/m3 | D14: =NOx!O19 -> 175 | E14: =NOx!N19 -> 169.6183333 | F14: =NOx!O34 -> 181 | G14: =NOx!N34 -> 170.5108333
B15: ½ hourly mean | C15: 400 mg/m3 | D15: =NOx!M19 -> 333 | E15: =NOx!L19 -> 169.7791667 | F15: =NOx!M34 -> 373 | G15: =NOx!L34 -> 170.7875
A16: Particulates | B16: Daily mean | C16: 5 mg/m3 | D16: =Particulates!O19 -> 2 | E16: =Particulates!N19 -> 0.6233333333 | F16: =Particulates!O34 -> 1 | G16: =Particulates!N34 -> 0.2216666667
B17: ½ hourly mean | C17: 30 mg/m3 | D17: =Particulates!M19 -> 89 | E17: =Particulates!L19 -> 0.6666666667 | F17: =Particulates!M34 -> 12 | G17: =Particulates!L34 -> 0.245
A18: Total Organic Carbon | B18: Daily mean | C18: 10 mg/m3 | D18: =TOC!O19 -> 2 | E18: =TOC!N19 -> 0.1458333333 | F18: =TOC!O34 -> 0 | G18: =TOC!N34 -> 0
B19: ½ hourly mean | C19: 20 mg/m3 | D19: =TOC!M19 -> 114 | E19: =TOC!L19 -> 0.1641666667 | F19: =TOC!M34 -> 29 | G19: =TOC!L34 -> 0.0625
A20: Hydrogen chloride | B20: Daily mean | C20: 8 mg/m3 | D20: =HCl!O19 -> 28 | E20: =HCl!N19 -> 4.965833333 | F20: =HCl!O34 -> 8 | G20: =HCl!N34 -> 4.7525
B21: ½ hourly mean | C21: 60 mg/m3 | D21: =HCl!M19 -> 179 | E21: =HCl!L19 -> 4.964166667 | F21: =HCl!M34 -> 41 | G21: =HCl!L34 -> 4.73
A22: Sulphur dioxide | B22: Daily mean | C22: 40 mg/m3 | D22: ='SO2'!O19 -> 32 | E22: ='SO2'!N19 -> 16.99333333 | F22: ='SO2'!O34 -> 33 | G22: ='SO2'!N34 -> 17.01583333
B23: ½ hourly mean | C23: 200 mg/m3 | D23: ='SO2'!M19 -> 173 | E23: ='SO2'!L19 -> 16.97833333 | F23: ='SO2'!M34 -> 105 | G23: ='SO2'!L34 -> 17.03
A24: Carbon monoxide | B24: Daily mean | C24: 50 mg/m3 | D24: ='CO 95% 10 min'!Q22 -> 31 | E24: ='CO 95% 10 min'!P22 -> 3.864166667 | F24: ='CO 95% 10 min'!Q37 -> 25 | G24: ='CO 95% 10 min'!P37 -> 4.485
B25: 95%ile 10-min avg * | C25: 150 mg/m3 * | D25: ='CO 95% 10 min'!M22 -> 233 | E25: ='CO 95% 10 min'!N22 -> 3.834166667 | F25: ='CO 95% 10 min'!M37 -> 89 | G25: ='CO 95% 10 min'!N37 -> 4.6925
A26: Ammonia | B26: Daily mean | C26: 15 mg/m3 | D26: ='NH3'!O19 -> 18 | E26: ='NH3'!N19 -> 4.5775 | F26: ='NH3'!O34 -> 17 | G26: ='NH3'!N34 -> 3.023333333
A27: * = delete as appropriate, depending on whether your plant has half-hourly or 10-min CO ELVs
A28: Comments :

Sheet HCl
A1: =+'Cover Page'!$B$29 -> Annual Performance Report 2024 | E1: =+'Cover Page'!$B$33 -> Wolverhampton Energy from Waste Facility
A3: Monitoring of Hydrogen Chloride emissions | D3: Whole Installation | G3: See Notes in Cell Q3 | J3: =+A3 -> Monitoring of Hydrogen Chloride emissions | N3: Per Combustion Line | Q3: Notes:
Q4: User to add logic to complete Whole installation, Table A5:G18. From the data in Per Combustion Line, Table J6:O79, subject to No. of lines installed
A5: =+'Cover Page'!C39 -> 2024 | B5: 1/2 Hourly Reference Periods | E5: Daily Reference Periods
A6: mg/Nm3 | B6: 1/2 hourly HCl ELV | C6: Monthly mean of half-hourly averages | D6: Highest half- hourly average | E6: Daily HCl ELV | F6: Monthly mean of daily averages | G6: Highest daily average | J6: =+A5 -> 2024 | K6: mg/Nm3 | L6: Monthly mean of half-hourly averages | M6: Highest half- hourly average | N6: Monthly mean of daily averages | O6: Highest daily average
A7: Jan | B7: 60 | C7: =AVERAGE(L7,L22) -> 5.34 | D7: =MAX(M7,M22) -> 26 | E7: 8 | F7: =AVERAGE(N7,N22) -> 5.34 | G7: =MAX(O7,O22) -> 7 | J7: A1 | K7: Jan | L7: 5.42 | M7: 26 | N7: 5.42 | O7: 7
A8: Feb | B8: 60 | C8: =AVERAGE(L8,L23) -> 5.825 | D8: =MAX(M8,M23) -> 80 | E8: 8 | F8: =AVERAGE(N8,N23) -> 5.72 | G8: =MAX(O8,O23) -> 8 | K8: Feb | L8: 6.06 | M8: 80 | N8: 6 | O8: 8
A9: Mar | B9: 60 | C9: 4.7 | D9: 39 | E9: 8 | F9: 4.525 | G9: 7 | K9: Mar | L9: 5 | M9: 19 | N9: 5.05 | O9: 7 | Q9: Whole Installation table A5:G18:
A10: Apr | B10: 60 | C10: 3.59 | D10: 18 | E10: 8 | F10: 3.58 | G10: 6 | K10: Apr | L10: 4.04 | M10: 18 | N10: 4.09 | O10: 6 | Q10: Mean: for 1/2 hourly and daily periods calculate mean of values across all operational combustion lines for the month
A11: May | B11: 60 | C11: 4.34 | D11: 18 | E11: 8 | F11: 4.235 | G11: 6 | K11: May | L11: 4.94 | M11: 18 | N11: 4.97 | O11: 6
A12: Jun | B12: 60 | C12: 5.18 | D12: 179 | E12: 8 | F12: 5.16 | G12: 28 | K12: Jun | L12: 5.83 | M12: 179 | N12: 5.93 | O12: 28
A13: Jul | B13: 60 | C13: 5.49 | D13: 41 | E13: 8 | F13: 5.54 | G13: 7 | K13: Jul | L13: 5.24 | M13: 27 | N13: 5.28 | O13: 7 | Q13: Maximum: for 1/2 hourly and daily periods use the highest value across all operational combustion lines for the month
A14: Aug | B14: 60 | C14: 5.69 | D14: 34 | E14: 8 | F14: 5.7 | G14: 9 | K14: Aug | L14: 5.23 | M14: 34 | N14: 5.2 | O14: 9
A15: Sep | B15: 60 | C15: 4.695 | D15: 33 | E15: 8 | F15: 5.21 | G15: 8 | K15: Sep | L15: 4.89 | M15: 17 | N15: 4.85 | O15: 7
A16: Oct | B16: 60 | C16: 4.66 | D16: 26 | E16: 8 | F16: 4.72 | G16: 7 | K16: Oct | L16: 4.32 | M16: 26 | N16: 4.44 | O16: 6
A17: Nov | B17: 60 | C17: 4.43 | D17: 22 | E17: 8 | F17: 4.455 | G17: 7 | K17: Nov | L17: 4.38 | M17: 20 | N17: 4.3 | O17: 6
A18: Dec | B18: 60 | C18: 4.225 | D18: 25 | E18: 8 | F18: 4.125 | G18: 6 | K18: Dec | L18: 4.22 | M18: 22 | N18: 4.06 | O18: 5
K19: Annual | L19: =AVERAGE(L7:L18) -> 4.964166667 | M19: =MAX(M7:M18) -> 179 | N19: =AVERAGE(N7:N18) -> 4.965833333 | O19: =MAX(O7:O18) -> 28
J21: =+A5 -> 2024 | K21: mg/Nm3 | L21: Monthly mean of half-hourly averages | M21: Highest half- hourly average | N21: Monthly mean of daily averages | O21: Highest daily average
J22: A2 | K22: Jan | L22: 5.26 | M22: 22 | N22: 5.26 | O22: 6
K23: Feb | L23: 5.59 | M23: 39 | N23: 5.44 | O23: 6
K24: Mar | L24: 4.4 | M24: 39 | N24: 4 | O24: 5
K25: Apr | L25: 3.14 | M25: 15 | N25: 3.07 | O25: 5
K26: May | L26: 3.74 | M26: 14 | N26: 3.5 | O26: 5
K27: Jun | L27: 4.53 | M27: 36 | N27: 4.39 | O27: 8
K28: Jul | L28: 5.74 | M28: 41 | N28: 5.8 | O28: 7
K29: Aug | L29: 6.15 | M29: 34 | N29: 6.2 | O29: 7
K30: Sep | L30: 4.5 | M30: 33 | N30: 5.57 | O30: 8
K31: Oct | L31: 5 | M31: 21 | N31: 5 | O31: 7
K32: Nov | L32: 4.48 | M32: 22 | N32: 4.61 | O32: 7
K33: Dec | L33: 4.23 | M33: 25 | N33: 4.19 | O33: 6
K34: Annual | L34: =AVERAGE(L22:L33) -> 4.73 | M34: =MAX(M22:M33) -> 41 | N34: =AVERAGE(N22:N33) -> 4.7525 | O34: =MAX(O22:O33) -> 8
J36: =+A5 -> 2024 | K36: mg/Nm3 | L36: Monthly mean of half-hourly averages | M36: Highest half- hourly average | N36: Monthly mean of daily averages | O36: Highest daily average
J37: A3 | K37: Jan
K38: Feb
K39: Mar
K40: Apr
K41: May
K42: Jun
K43: Jul
K44: Aug
K45: Sep
K46: Oct
K47: Nov
A48: Comments : | K48: Dec
K49: Annual | L49: =AVERAGE(L37:L48) ->  | M49: =MAX(M37:M48) -> 0 | N49: =AVERAGE(N37:N48) ->  | O49: =MAX(O37:O48) -> 0
J51: =+A5 -> 2024 | K51: mg/Nm3 | L51: Monthly mean of half-hourly averages | M51: Highest half- hourly average | N51: Monthly mean of daily averages | O51: Highest daily average
J52: A4 | K52: Jan
K53: Feb
K54: Mar
K55: Apr
K56: May
K57: Jun
K58: Jul
K59: Aug
K60: Sep
K61: Oct
K62: Nov
K63: Dec
K64: Annual | L64: =AVERAGE(L52:L63) ->  | M64: =MAX(M52:M63) -> 0 | N64: =AVERAGE(N52:N63) ->  | O64: =MAX(O52:O63) -> 0
J66: =+A5 -> 2024 | K66: mg/Nm3 | L66: Monthly mean of half-hourly averages | M66: Highest half- hourly average | N66: Monthly mean of daily averages | O66: Highest daily average
J67: A5 | K67: Jan
K68: Feb
K69: Mar
K70: Apr
K71: May
K72: Jun
K73: Jul
K74: Aug
K75: Sep
K76: Oct
K77: Nov
K78: Dec
K79: Annual | L79: =AVERAGE(L67:L78) ->  | M79: =MAX(M67:M78) -> 0 | N79: =AVERAGE(N67:N78) ->  | O79: =MAX(O67:O78) -> 0

Sheet SO2
A1: =+'Cover Page'!$B$29 -> Annual Performance Report 2024 | E1: =+'Cover Page'!$B$33 -> Wolverhampton Energy from Waste Facility
A3: Monitoring of Sulphur dioxide emissions | D3: Whole Installation | G3: See Notes in Cell Q3 | J3: =+A3 -> Monitoring of Sulphur dioxide emissions | N3: Per Combustion Line | Q3: Notes:
Q4: User to add logic to complete Whole installation, Table A5:G18. From the data in Per Combustion Line, Table J6:O79, subject to No. of lines installed
A5: =+'Cover Page'!C39 -> 2024 | B5: 1/2 Hourly Reference Periods | E5: Daily Reference Periods
A6: mg/Nm3 | B6: 1/2 hourly SO2 ELV | C6: Monthly mean of half-hourly averages | D6: Highest half- hourly average | E6: Daily SO2 ELV | F6: Monthly mean of daily averages | G6: Highest daily average | J6: =+A5 -> 2024 | K6: mg/Nm3 | L6: Monthly mean of half-hourly averages | M6: Highest half- hourly average | N6: Monthly mean of daily averages | O6: Highest daily average
A7: Jan | B7: 200 | C7: =AVERAGE(L7,L22) -> 12.98 | D7: =MAX(M7,M22) -> 86 | E7: 40 | F7: =AVERAGE(N7,N22) -> 12.98 | G7: =MAX(O7,O22) -> 23 | J7: A1 | K7: Jan | L7: 11.19 | M7: 62 | N7: 11.19 | O7: 16
A8: Feb | B8: 200 | C8: =AVERAGE(L8,L23) -> 15.265 | D8: =MAX(M8,M23) -> 86 | E8: 40 | F8: =AVERAGE(N8,N23) -> 15.575 | G8: =MAX(O8,O23) -> 25 | K8: Feb | L8: 15.06 | M8: 71 | N8: 15.13 | O8: 23
A9: Mar | B9: 200 | C9: 15.57 | D9: 100 | E9: 40 | F9: 14.95 | G9: 24 | K9: Mar | L9: 18.44 | M9: 100 | N9: 17.63 | O9: 24 | Q9: Whole Installation table A5:G18:
A10: Apr | B10: 200 | C10: 22.885 | D10: 173 | E10: 40 | F10: 22.75 | G10: 31 | K10: Apr | L10: 22.44 | M10: 173 | N10: 22.77 | O10: 31 | Q10: Mean: for 1/2 hourly and daily periods calculate mean of values across all operational combustion lines for the month
A11: May | B11: 200 | C11: 20.805 | D11: 131 | E11: 40 | F11: 21.08 | G11: 33 | K11: May | L11: 17.19 | M11: 131 | N11: 17.41 | O11: 30
A12: Jun | B12: 200 | C12: 19.565 | D12: 103 | E12: 40 | F12: 19.785 | G12: 27 | K12: Jun | L12: 18.1 | M12: 89 | N12: 18.11 | O12: 24
A13: Jul | B13: 200 | C13: 15.965 | D13: 75 | E13: 40 | F13: 15.47 | G13: 24 | K13: Jul | L13: 15.9 | M13: 75 | N13: 14.84 | O13: 22 | Q13: Maximum: for 1/2 hourly and daily periods use the highest value across all operational combustion lines for the month
A14: Aug | B14: 200 | C14: 18.245 | D14: 108 | E14: 40 | F14: 18.065 | G14: 32 | K14: Aug | L14: 19.68 | M14: 108 | N14: 19.53 | O14: 32
A15: Sep | B15: 200 | C15: 14.1 | D15: 71 | E15: 40 | F15: 14.07 | G15: 24 | K15: Sep | L15: 14.5 | M15: 71 | N15: 15 | O15: 24
A16: Oct | B16: 200 | C16: 17.95 | D16: 86 | E16: 40 | F16: 18.145 | G16: 25 | K16: Oct | L16: 17.57 | M16: 86 | N16: 17.96 | O16: 25
A17: Nov | B17: 200 | C17: 15.1 | D17: 105 | E17: 40 | F17: 15.26 | G17: 24 | K17: Nov | L17: 17.24 | M17: 87 | N17: 17.35 | O17: 24
A18: Dec | B18: 200 | C18: 15.62 | D18: 118 | E18: 40 | F18: 15.925 | G18: 27 | K18: Dec | L18: 16.43 | M18: 118 | N18: 17 | O18: 27
K19: Annual | L19: =AVERAGE(L7:L18) -> 16.97833333 | M19: =MAX(M7:M18) -> 173 | N19: =AVERAGE(N7:N18) -> 16.99333333 | O19: =MAX(O7:O18) -> 32
J21: =+A5 -> 2024 | K21: mg/Nm3 | L21: Monthly mean of half-hourly averages | M21: Highest half- hourly average | N21: Monthly mean of daily averages | O21: Highest daily average
J22: A2 | K22: Jan | L22: 14.77 | M22: 86 | N22: 14.77 | O22: 23
K23: Feb | L23: 15.47 | M23: 86 | N23: 16.02 | O23: 25
K24: Mar | L24: 12.7 | M24: 62 | N24: 12.27 | O24: 19
K25: Apr | L25: 23.33 | M25: 78 | N25: 22.73 | O25: 29
K26: May | L26: 24.42 | M26: 84 | N26: 24.75 | O26: 33
K27: Jun | L27: 21.03 | M27: 103 | N27: 21.46 | O27: 27
K28: Jul | L28: 16.03 | M28: 73 | N28: 16.1 | O28: 24
K29: Aug | L29: 16.81 | M29: 97 | N29: 16.6 | O29: 20
K30: Sep | L30: 13.7 | M30: 63 | N30: 13.14 | O30: 23
K31: Oct | L31: 18.33 | M31: 69 | N31: 18.33 | O31: 24
K32: Nov | L32: 12.96 | M32: 105 | N32: 13.17 | O32: 21
K33: Dec | L33: 14.81 | M33: 84 | N33: 14.85 | O33: 24
K34: Annual | L34: =AVERAGE(L22:L33) -> 17.03 | M34: =MAX(M22:M33) -> 105 | N34: =AVERAGE(N22:N33) -> 17.01583333 | O34: =MAX(O22:O33) -> 33
J36: =+A5 -> 2024 | K36: mg/Nm3 | L36: Monthly mean of half-hourly averages | M36: Highest half- hourly average | N36: Monthly mean of daily averages | O36: Highest daily average
J37: A3 | K37: Jan
K38: Feb
K39: Mar
K40: Apr
K41: May
K42: Jun
K43: Jul
K44: Aug
K45: Sep
K46: Oct
K47: Nov
A48: Comments : | K48: Dec
K49: Annual | L49: =AVERAGE(L37:L48) ->  | M49: =MAX(M37:M48) -> 0 | N49: =AVERAGE(N37:N48) ->  | O49: =MAX(O37:O48) -> 0
J51: =+A5 -> 2024 | K51: mg/Nm3 | L51: Monthly mean of half-hourly averages | M51: Highest half- hourly average | N51: Monthly mean of daily averages | O51: Highest daily average
J52: A4 | K52: Jan
K53: Feb
K54: Mar
K55: Apr
K56: May
K57: Jun
K58: Jul
K59: Aug
K60: Sep
K61: Oct
K62: Nov
K63: Dec
K64: Annual | L64: =AVERAGE(L52:L63) ->  | M64: =MAX(M52:M63) -> 0 | N64: =AVERAGE(N52:N63) ->  | O64: =MAX(O52:O63) -> 0
J66: =+A5 -> 2024 | K66: mg/Nm3 | L66: Monthly mean of half-hourly averages | M66: Highest half- hourly average | N66: Monthly mean of daily averages | O66: Highest daily average
J67: A5 | K67: Jan
K68: Feb
K69: Mar
K70: Apr
K71: May
K72: Jun
K73: Jul
K74: Aug
K75: Sep
K76: Oct
K77: Nov
K78: Dec
K79: Annual | L79: =AVERAGE(L67:L78) ->  | M79: =MAX(M67:M78) -> 0 | N79: =AVERAGE(N67:N78) ->  | O79: =MAX(O67:O78) -> 0

Sheet NOx
A1: =+'Cover Page'!$B$29 -> Annual Performance Report 2024 | E1: =+'Cover Page'!$B$33 -> Wolverhampton Energy from Waste Facility
A3: Monitoring of Oxides of Nitrogen emissions | D3: Whole Installation | G3: See Notes in Cell Q3 | J3: =+A3 -> Monitoring of Oxides of Nitrogen emissions | N3: Per Combustion Line | Q3: Notes:
Q4: User to add logic to complete Whole installation, Table A5:G18. From the data in Per Combustion Line, Table J6:O79, subject to No. of lines installed
A5: =+'Cover Page'!C39 -> 2024 | B5: 1/2 Hourly Reference Periods | E5: Daily Reference Periods
A6: mg/Nm3 | B6: 1/2 hourly NOx ELV | C6: Monthly mean of half-hourly averages | D6: Highest half- hourly average | E6: Daily NOx ELV | F6: Monthly mean of daily averages | G6: Highest daily average | J6: =+A5 -> 2024 | K6: mg/Nm3 | L6: Monthly mean of half-hourly averages | M6: Highest half- hourly average | N6: Monthly mean of daily averages | O6: Highest daily average
A7: Jan | B7: 400 | C7: =AVERAGE(L7,L22) -> 169.95 | D7: =MAX(M7,M22) -> 249 | E7: 180 | F7: =AVERAGE(N7,N22) -> 169.95 | G7: =MAX(O7,O22) -> 172 | J7: A1 | K7: Jan | L7: 169.45 | M7: 217 | N7: 169.45 | O7: 172
A8: Feb | B8: 400 | C8: =AVERAGE(L8,L23) -> 169.735 | D8: =MAX(M8,M23) -> 317 | E8: 180 | F8: =AVERAGE(N8,N23) -> 169.31 | G8: =MAX(O8,O23) -> 173 | K8: Feb | L8: 169.18 | M8: 281 | N8: 168.81 | O8: 172
A9: Mar | B9: 400 | C9: 170.695 | D9: 333 | E9: 180 | F9: 169.835 | G9: 173 | K9: Mar | L9: 169.64 | M9: 333 | N9: 168.94 | O9: 173 | Q9: Whole Installation table A5:G18:
A10: Apr | B10: 400 | C10: 172.41 | D10: 330 | E10: 180 | F10: 171.285 | G10: 180 | K10: Apr | L10: 169.96 | M10: 313 | N10: 170.64 | O10: 173 | Q10: Mean: for 1/2 hourly and daily periods calculate mean of values across all operational combustion lines for the month
A11: May | B11: 400 | C11: 171.54 | D11: 295 | E11: 180 | F11: 170.095 | G11: 181 | K11: May | L11: 170.55 | M11: 228 | N11: 170.31 | O11: 172
A12: Jun | B12: 400 | C12: 170.67 | D12: 271 | E12: 180 | F12: 170.805 | G12: 178 | K12: Jun | L12: 170.57 | M12: 210 | N12: 170.5 | O12: 171
A13: Jul | B13: 400 | C13: 170.765 | D13: 312 | E13: 180 | F13: 170.595 | G13: 175 | K13: Jul | L13: 170.79 | M13: 312 | N13: 170.56 | O13: 173 | Q13: Maximum: for 1/2 hourly and daily periods use the highest value across all operational combustion lines for the month
A14: Aug | B14: 400 | C14: 167.38 | D14: 373 | E14: 180 | F14: 167.505 | G14: 176 | K14: Aug | L14: 164.13 | M14: 281 | N14: 163.97 | O14: 175
A15: Sep | B15: 400 | C15: 168.765 | D15: 288 | E15: 180 | F15: 170.5 | G15: 173 | K15: Sep | L15: 170.93 | M15: 288 | N15: 171 | O15: 173
A16: Oct | B16: 400 | C16: 170.625 | D16: 299 | E16: 180 | F16: 170.3 | G16: 172 | K16: Oct | L16: 170.89 | M16: 299 | N16: 170.24 | O16: 172
A17: Nov | B17: 400 | C17: 170.54 | D17: 240 | E17: 180 | F17: 170.565 | G17: 172 | K17: Nov | L17: 170.56 | M17: 227 | N17: 170.61 | O17: 171
A18: Dec | B18: 400 | C18: 170.325 | D18: 290 | E18: 180 | F18: 170.03 | G18: 176 | K18: Dec | L18: 170.7 | M18: 231 | N18: 170.39 | O18: 174
K19: Annual | L19: =AVERAGE(L7:L18) -> 169.7791667 | M19: =MAX(M7:M18) -> 333 | N19: =AVERAGE(N7:N18) -> 169.6183333 | O19: =MAX(O7:O18) -> 175
J21: =+A5 -> 2024 | K21: mg/Nm3 | L21: Monthly mean of half-hourly averages | M21: Highest half- hourly average | N21: Monthly mean of daily averages | O21: Highest daily average
J22: A2 | K22: Jan | L22: 170.45 | M22: 249 | N22: 170.45 | O22: 172
K23: Feb | L23: 170.29 | M23: 317 | N23: 169.81 | O23: 173
K24: Mar | L24: 171.75 | M24: 269 | N24: 170.73 | O24: 173
K25: Apr | L25: 174.86 | M25: 330 | N25: 171.93 | O25: 180
K26: May | L26: 172.53 | M26: 295 | N26: 169.88 | O26: 181
K27: Jun | L27: 170.77 | M27: 271 | N27: 171.11 | O27: 178
K28: Jul | L28: 170.74 | M28: 243 | N28: 170.63 | O28: 175
K29: Aug | L29: 170.63 | M29: 373 | N29: 171.04 | O29: 176
K30: Sep | L30: 166.6 | M30: 247 | N30: 170 | O30: 172
K31: Oct | L31: 170.36 | M31: 253 | N31: 170.36 | O31: 172
K32: Nov | L32: 170.52 | M32: 240 | N32: 170.52 | O32: 172
K33: Dec | L33: 169.95 | M33: 290 | N33: 169.67 | O33: 176
K34: Annual | L34: =AVERAGE(L22:L33) -> 170.7875 | M34: =MAX(M22:M33) -> 373 | N34: =AVERAGE(N22:N33) -> 170.5108333 | O34: =MAX(O22:O33) -> 181
J36: =+A5 -> 2024 | K36: mg/Nm3 | L36: Monthly mean of half-hourly averages | M36: Highest half- hourly average | N36: Monthly mean of daily averages | O36: Highest daily average
J37: A3 | K37: Jan
K38: Feb
K39: Mar
K40: Apr
K41: May
K42: Jun
K43: Jul
K44: Aug
K45: Sep
K46: Oct
K47: Nov
A48: Comments : | K48: Dec
K49: Annual | L49: =AVERAGE(L37:L48) ->  | M49: =MAX(M37:M48) -> 0 | N49: =AVERAGE(N37:N48) ->  | O49: =MAX(O37:O48) -> 0
J51: =+A5 -> 2024 | K51: mg/Nm3 | L51: Monthly mean of half-hourly averages | M51: Highest half- hourly average | N51: Monthly mean of daily averages | O51: Highest daily average
J52: A4 | K52: Jan
K53: Feb
K54: Mar
K55: Apr
K56: May
K57: Jun
K58: Jul
K59: Aug
K60: Sep
K61: Oct
K62: Nov
K63: Dec
K64: Annual | L64: =AVERAGE(L52:L63) ->  | M64: =MAX(M52:M63) -> 0 | N64: =AVERAGE(N52:N63) ->  | O64: =MAX(O52:O63) -> 0
J66: =+A5 -> 2024 | K66: mg/Nm3 | L66: Monthly mean of half-hourly averages | M66: Highest half- hourly average | N66: Monthly mean of daily averages | O66: Highest daily average
J67: A5 | K67: Jan
K68: Feb
K69: Mar
K70: Apr
K71: May
K72: Jun
K73: Jul
K74: Aug
K75: Sep
K76: Oct
K77: Nov
K78: Dec
K79: Annual | L79: =AVERAGE(L67:L78) ->  | M79: =MAX(M67:M78) -> 0 | N79: =AVERAGE(N67:N78) ->  | O79: =MAX(O67:O78) -> 0

Sheet TOC
A1: =+'Cover Page'!$B$29 -> Annual Performance Report 2024 | E1: =+'Cover Page'!$B$33 -> Wolverhampton Energy from Waste Facility
A3: Monitoring of Total organic carbon emissions | D3: Whole Installation | G3: See Notes in Cell Q3 | J3: =+A3 -> Monitoring of Total organic carbon emissions | N3: Per Combustion Line | Q3: Notes:
Q4: User to add logic to complete Whole installation, Table A5:G18. From the data in Per Combustion Line, Table J6:O79, subject to No. of lines installed
A5: =+'Cover Page'!C39 -> 2024 | B5: 1/2 Hourly Reference Periods | E5: Daily Reference Periods
A6: mg/Nm3 | B6: 1/2 hourly TOC ELV | C6: Monthly mean of half-hourly averages | D6: Highest half- hourly average | E6: Daily TOC ELV | F6: Monthly mean of daily averages | G6: Highest daily average | J6: =+A5 -> 2024 | K6: mg/Nm3 | L6: Monthly mean of half-hourly averages | M6: Highest half- hourly average | N6: Monthly mean of daily averages | O6: Highest daily average
A7: Jan | B7: 20 | C7: =AVERAGE(L7,L22) -> 0.16 | D7: =MAX(M7,M22) -> 9 | E7: 10 | F7: =AVERAGE(N7,N22) -> 0.16 | G7: =MAX(O7,O22) -> 1 | J7: A1 | K7: Jan | L7: 0.32 | M7: 1 | N7: 0.32 | O7: 1
A8: Feb | B8: 20 | C8: =AVERAGE(L8,L23) -> 0.03 | D8: =MAX(M8,M23) -> 5 | E8: 10 | F8: =AVERAGE(N8,N23) -> 0 | G8: =MAX(O8,O23) -> 0 | K8: Feb | L8: 0 | M8: 1 | N8: 0 | O8: 0
A9: Mar | B9: 20 | C9: 0.24 | D9: 114 | E9: 10 | F9: 0.08 | G9: 2 | K9: Mar | L9: 0.28 | M9: 114 | N9: 0.16 | O9: 2 | Q9: Whole Installation table A5:G18:
A10: Apr | B10: 20 | C10: 0.3 | D10: 25 | E10: 10 | F10: 0.18 | G10: 1 | K10: Apr | L10: 0.36 | M10: 25 | N10: 0.36 | O10: 1 | Q10: Mean: for 1/2 hourly and daily periods calculate mean of values across all operational combustion lines for the month
A11: May | B11: 20 | C11: 0.235 | D11: 9 | E11: 10 | F11: 0.205 | G11: 1 | K11: May | L11: 0.42 | M11: 6 | N11: 0.41 | O11: 1
A12: Jun | B12: 20 | C12: 0 | D12: 7 | E12: 10 | F12: 0 | G12: 0 | K12: Jun | L12: 0 | M12: 7 | N12: 0 | O12: 0
A13: Jul | B13: 20 | C13: 0 | D13: 5 | E13: 10 | F13: 0 | G13: 0 | K13: Jul | L13: 0 | M13: 5 | N13: 0 | O13: 0 | Q13: Maximum: for 1/2 hourly and daily periods use the highest value across all operational combustion lines for the month
A14: Aug | B14: 20 | C14: 0.08 | D14: 10 | E14: 10 | F14: 0.065 | G14: 1 | K14: Aug | L14: 0.16 | M14: 10 | N14: 0.13 | O14: 1
A15: Sep | B15: 20 | C15: 0.1 | D15: 5 | E15: 10 | F15: 0 | G15: 0 | K15: Sep | L15: 0 | M15: 5 | N15: 0 | O15: 0
A16: Oct | B16: 20 | C16: 0.02 | D16: 8 | E16: 10 | F16: 0.02 | G16: 1 | K16: Oct | L16: 0.04 | M16: 8 | N16: 0.04 | O16: 1
A17: Nov | B17: 20 | C17: 0 | D17: 14 | E17: 10 | F17: 0 | G17: 0 | K17: Nov | L17: 0 | M17: 14 | N17: 0 | O17: 0
A18: Dec | B18: 20 | C18: 0.195 | D18: 13 | E18: 10 | F18: 0.165 | G18: 2 | K18: Dec | L18: 0.39 | M18: 13 | N18: 0.33 | O18: 2
K19: Annual | L19: =AVERAGE(L7:L18) -> 0.1641666667 | M19: =MAX(M7:M18) -> 114 | N19: =AVERAGE(N7:N18) -> 0.1458333333 | O19: =MAX(O7:O18) -> 2
J21: =+A5 -> 2024 | K21: mg/Nm3 | L21: Monthly mean of half-hourly averages | M21: Highest half- hourly average | N21: Monthly mean of daily averages | O21: Highest daily average
J22: A2 | K22: Jan | L22: 0 | M22: 9 | N22: 0 | O22: 0
K23: Feb | L23: 0.06 | M23: 5 | N23: 0 | O23: 0
K24: Mar | L24: 0.2 | M24: 29 | N24: 0 | O24: 0
K25: Apr | L25: 0.24 | M25: 6 | N25: 0 | O25: 0
K26: May | L26: 0.05 | M26: 9 | N26: 0 | O26: 0
K27: Jun | L27: 0 | M27: 6 | N27: 0 | O27: 0
K28: Jul | L28: 0 | M28: 5 | N28: 0 | O28: 0
K29: Aug | L29: 0 | M29: 3 | N29: 0 | O29: 0
K30: Sep | L30: 0.2 | M30: 4 | N30: 0 | O30: 0
K31: Oct | L31: 0 | M31: 6 | N31: 0 | O31: 0
K32: Nov | L32: 0 | M32: 6 | N32: 0 | O32: 0
K33: Dec | L33: 0 | M33: 11 | N33: 0 | O33: 0
K34: Annual | L34: =AVERAGE(L22:L33) -> 0.0625 | M34: =MAX(M22:M33) -> 29 | N34: =AVERAGE(N22:N33) -> 0 | O34: =MAX(O22:O33) -> 0
J36: =+A5 -> 2024 | K36: mg/Nm3 | L36: Monthly mean of half-hourly averages | M36: Highest half- hourly average | N36: Monthly mean of daily averages | O36: Highest daily average
J37: A3 | K37: Jan
K38: Feb
K39: Mar
K40: Apr
K41: May
K42: Jun
K43: Jul
K44: Aug
K45: Sep
K46: Oct
K47: Nov
A48: Comments : | K48: Dec
K49: Annual | L49: =AVERAGE(L37:L48) ->  | M49: =MAX(M37:M48) -> 0 | N49: =AVERAGE(N37:N48) ->  | O49: =MAX(O37:O48) -> 0
J51: =+A5 -> 2024 | K51: mg/Nm3 | L51: Monthly mean of half-hourly averages | M51: Highest half- hourly average | N51: Monthly mean of daily averages | O51: Highest daily average
J52: A4 | K52: Jan
K53: Feb
K54: Mar
K55: Apr
K56: May
K57: Jun
K58: Jul
K59: Aug
K60: Sep
K61: Oct
K62: Nov
K63: Dec
K64: Annual | L64: =AVERAGE(L52:L63) ->  | M64: =MAX(M52:M63) -> 0 | N64: =AVERAGE(N52:N63) ->  | O64: =MAX(O52:O63) -> 0
J66: =+A5 -> 2024 | K66: mg/Nm3 | L66: Monthly mean of half-hourly averages | M66: Highest half- hourly average | N66: Monthly mean of daily averages | O66: Highest daily average
J67: A5 | K67: Jan
K68: Feb
K69: Mar
K70: Apr
K71: May
K72: Jun
K73: Jul
K74: Aug
K75: Sep
K76: Oct
K77: Nov
K78: Dec
K79: Annual | L79: =AVERAGE(L67:L78) ->  | M79: =MAX(M67:M78) -> 0 | N79: =AVERAGE(N67:N78) ->  | O79: =MAX(O67:O78) -> 0

Sheet Particulates
A1: =+'Cover Page'!$B$29 -> Annual Performance Report 2024 | E1: =+'Cover Page'!$B$33 -> Wolverhampton Energy from Waste Facility
A3: Monitoring of Particulate matter emissions | D3: Whole Installation | G3: See Notes in Cell Q3 | J3: =+A3 -> Monitoring of Particulate matter emissions | N3: Per Combustion Line | Q3: Notes:
A5: =+'Cover Page'!C39 -> 2024 | B5: 1/2 Hourly Reference Periods | E5: Daily Reference Periods | Q5: User to add logic to complete Whole installation, Table A5:G18. From the data in Per Combustion Line, Table J6:O79, subject to No. of lines installed
A6: mg/Nm3 | B6: 1/2 hourly PM ELV | C6: Monthly mean of half-hourly averages | D6: Highest half- hourly average | E6: Daily PM ELV | F6: Monthly mean of daily averages | G6: Highest daily average | J6: =+A5 -> 2024 | K6: mg/Nm3 | L6: Monthly mean of half-hourly averages | M6: Highest half- hourly average | N6: Monthly mean of daily averages | O6: Highest daily average
A7: Jan | B7: 30 | C7: =AVERAGE(L7:L18) -> 0.6666666667 | D7: =MAX(M7,M22) -> 3 | E7: 5 | F7: =AVERAGE(N7,N22) -> 0.565 | G7: =MAX(O7,O22) -> 1 | J7: A1 | K7: Jan | L7: 0.13 | M7: 3 | N7: 0.13 | O7: 1
A8: Feb | B8: 30 | C8: =AVERAGE(L8:L19) -> 0.7113888889 | D8: =MAX(M8,M23) -> 2 | E8: 5 | F8: =AVERAGE(N8,N23) -> 0.255 | G8: =MAX(O8,O23) -> 1 | K8: Feb | L8: 0.35 | M8: 1 | N8: 0.38 | O8: 1
A9: Mar | B9: 30 | C9: 0.7442424242 | D9: 5 | E9: 5 | F9: 0.415 | G9: 1 | K9: Mar | L9: 0.52 | M9: 5 | N9: 0.37 | O9: 1
A10: Apr | B10: 30 | C10: 0.7666666667 | D10: 11 | E10: 5 | F10: 0.545 | G10: 1 | K10: Apr | L10: 0.84 | M10: 11 | N10: 0.82 | O10: 1 | Q10: Whole Installation table A5:G18:
A11: May | B11: 30 | C11: 0.7826666667 | D11: 5 | E11: 5 | F11: 0.5 | G11: 1 | K11: May | L11: 0.71 | M11: 5 | N11: 0.69 | O11: 1 | Q11: Mean: for 1/2 hourly and daily periods calculate mean of values across all operational combustion lines for the month
A12: Jun | B12: 30 | C12: 0.7236666667 | D12: 2 | E12: 5 | F12: 0.34 | G12: 1 | K12: Jun | L12: 0.63 | M12: 2 | N12: 0.68 | O12: 1
A13: Jul | B13: 30 | C13: 0.7056666667 | D13: 2 | E13: 5 | F13: 0.46 | G13: 1 | K13: Jul | L13: 0.9 | M13: 2 | N13: 0.92 | O13: 1
A14: Aug | B14: 30 | C14: 0.6486666667 | D14: 9 | E14: 5 | F14: 0.55 | G14: 2 | K14: Aug | L14: 1.13 | M14: 9 | N14: 1.1 | O14: 2 | Q14: Maximum: for 1/2 hourly and daily periods use the highest value across all operational combustion lines for the month
A15: Sep | B15: 30 | C15: 0.5676666667 | D15: 8 | E15: 5 | F15: 0.88 | G15: 2 | K15: Sep | L15: 1.64 | M15: 8 | N15: 1.62 | O15: 2
A16: Oct | B16: 30 | C16: 0.4036666667 | D16: 89 | E16: 5 | F16: 0.16 | G16: 1 | K16: Oct | L16: 0.46 | M16: 89 | N16: 0.12 | O16: 1
A17: Nov | B17: 30 | C17: 0.3576666667 | D17: 24 | E17: 5 | F17: 0.04 | G17: 1 | K17: Nov | L17: 0.08 | M17: 24 | N17: 0.04 | O17: 1
A18: Dec | B18: 30 | C18: 0.3536666667 | D18: 31 | E18: 5 | F18: 0.36 | G18: 2 | K18: Dec | L18: 0.61 | M18: 31 | N18: 0.61 | O18: 2
K19: Annual | L19: =AVERAGE(L7:L18) -> 0.6666666667 | M19: =MAX(M7:M18) -> 89 | N19: =AVERAGE(N7:N18) -> 0.6233333333 | O19: =MAX(O7:O18) -> 2
J21: =+A5 -> 2024 | K21: mg/Nm3 | L21: Monthly mean of half-hourly averages | M21: Highest half- hourly average | N21: Monthly mean of daily averages | O21: Highest daily average
J22: A2 | K22: Jan | L22: 1 | M22: 1 | N22: 1 | O22: 1
K23: Feb | L23: 0.12 | M23: 2 | N23: 0.13 | O23: 1
K24: Mar | L24: 0.45 | M24: 1 | N24: 0.46 | O24: 1
K25: Apr | L25: 0.33 | M25: 1 | N25: 0.27 | O25: 1
K26: May | L26: 0.32 | M26: 4 | N26: 0.31 | O26: 1
K27: Jun | L27: 0 | M27: 1 | N27: 0 | O27: 0
K28: Jul | L28: 0 | M28: 1 | N28: 0 | O28: 0
K29: Aug | L29: 0.04 | M29: 1 | N29: 0 | O29: 0
K30: Sep | L30: 0.3 | M30: 1 | N30: 0.14 | O30: 1
K31: Oct | L31: 0.2 | M31: 12 | N31: 0.2 | O31: 1
K32: Nov | L32: 0.08 | M32: 1 | N32: 0.04 | O32: 1
K33: Dec | L33: 0.1 | M33: 9 | N33: 0.11 | O33: 1
K34: Annual | L34: =AVERAGE(L22:L33) -> 0.245 | M34: =MAX(M22:M33) -> 12 | N34: =AVERAGE(N22:N33) -> 0.2216666667 | O34: =MAX(O22:O33) -> 1
J36: =+A5 -> 2024 | K36: mg/Nm3 | L36: Monthly mean of half-hourly averages | M36: Highest half- hourly average | N36: Monthly mean of daily averages | O36: Highest daily average
J37: A3 | K37: Jan
K38: Feb
K39: Mar
K40: Apr
K41: May
K42: Jun
K43: Jul
K44: Aug
K45: Sep
K46: Oct
K47: Nov
A48: Comments : | K48: Dec
K49: Annual | L49: =AVERAGE(L37:L48) ->  | M49: =MAX(M37:M48) -> 0 | N49: =AVERAGE(N37:N48) ->  | O49: =MAX(O37:O48) -> 0
J51: =+A5 -> 2024 | K51: mg/Nm3 | L51: Monthly mean of half-hourly averages | M51: Highest half- hourly average | N51: Monthly mean of daily averages | O51: Highest daily average
J52: A4 | K52: Jan
K53: Feb
K54: Mar
K55: Apr
K56: May
K57: Jun
K58: Jul
K59: Aug
K60: Sep
K61: Oct
K62: Nov
K63: Dec
K64: Annual | L64: =AVERAGE(L52:L63) ->  | M64: =MAX(M52:M63) -> 0 | N64: =AVERAGE(N52:N63) ->  | O64: =MAX(O52:O63) -> 0
J66: =+A5 -> 2024 | K66: mg/Nm3 | L66: Monthly mean of half-hourly averages | M66: Highest half- hourly average | N66: Monthly mean of daily averages | O66: Highest daily average
J67: A5 | K67: Jan
K68: Feb
K69: Mar
K70: Apr
K71: May
K72: Jun
K73: Jul
K74: Aug
K75: Sep
K76: Oct
K77: Nov
K78: Dec
K79: Annual | L79: =AVERAGE(L67:L78) ->  | M79: =MAX(M67:M78) -> 0 | N79: =AVERAGE(N67:N78) ->  | O79: =MAX(O67:O78) -> 0

Sheet CO 0.5 hourly
A1: =+'Cover Page'!$B$29 -> Annual Performance Report 2024 | E1: =+'Cover Page'!$B$33 -> Wolverhampton Energy from Waste Facility | G1: NA
A3: Monitoring of Carbon Monoxide (half hourly) | D3: Whole Installation | G3: See Notes in Cell Q3 | J3: =+A3 -> Monitoring of Carbon Monoxide (half hourly) | N3: Per Combustion Line | Q3: Notes:
A5: Please complete this tab for your plant if you have 1/2 hourly CO ELVs; otherwise, leave it blank and complete the CO 95% 10 min tab
Q7: User to add logic to complete Whole installation, Table A5:G18. From the data in Per Combustion Line, Table J6:O79, subject to No. of lines installed
A8: =+'Cover Page'!C39 -> 2024 | B8: 1/2 Hourly Reference Periods | E8: Daily Reference Periods
A9: mg/Nm3 | B9: 1/2 hourly CO ELV | C9: Monthly mean of half-hourly averages | D9: Highest half- hourly average | E9: Daily CO ELV | F9: Monthly mean of daily averages | G9: Highest daily average | J9: =+A8 -> 2024 | K9: mg/Nm3 | L9: Monthly mean of half-hourly averages | M9: Highest half- hourly average | N9: Monthly mean of daily averages | O9: Highest daily average
A10: Jan | B10: 100 | E10: 50 | J10: A1 | K10: Jan
A11: Feb | B11: =+B10 -> 100 | E11: =+E10 -> 50 | K11: Feb
A12: Mar | B12: =+B11 -> 100 | E12: =+E11 -> 50 | K12: Mar | Q12: Whole Installation table A5:G18:
A13: Apr | B13: 100 | E13: 50 | K13: Apr | Q13: Mean: for 1/2 hourly and daily periods calculate mean of values across all operational combustion lines for the month
A14: May | B14: 100 | E14: 50 | K14: May
A15: Jun | B15: 100 | E15: 50 | K15: Jun
A16: Jul | B16: 100 | E16: 50 | K16: Jul | Q16: Maximum: for 1/2 hourly and daily periods use the highest value across all operational combustion lines for the month
A17: Aug | B17: 100 | E17: 50 | K17: Aug
A18: Sep | B18: 100 | E18: 50 | K18: Sep
A19: Oct | B19: 100 | E19: 50 | K19: Oct
A20: Nov | B20: 100 | E20: 50 | K20: Nov
A21: Dec | B21: 100 | E21: 50 | K21: Dec
K22: Annual | L22: =AVERAGE(L10:L21) ->  | M22: =MAX(M10:M21) -> 0 | N22: =AVERAGE(N10:N21) ->  | O22: =MAX(O10:O21) -> 0
J24: =+A8 -> 2024 | K24: mg/Nm3 | L24: Monthly mean of half-hourly averages | M24: Highest half- hourly average | N24: Monthly mean of daily averages | O24: Highest daily average
J25: A2 | K25: Jan
K26: Feb
K27: Mar
K28: Apr
K29: May
K30: Jun
K31: Jul
K32: Aug
K33: Sep
K34: Oct
K35: Nov
K36: Dec
K37: Annual | L37: =AVERAGE(L25:L36) ->  | M37: =MAX(M25:M36) -> 0 | N37: =AVERAGE(N25:N36) ->  | O37: =MAX(O25:O36) -> 0
J39: =+A8 -> 2024 | K39: mg/Nm3 | L39: Monthly mean of half-hourly averages | M39: Highest half- hourly average | N39: Monthly mean of daily averages | O39: Highest daily average
J40: A3 | K40: Jan
K41: Feb
K42: Mar
K43: Apr
K44: May
K45: Jun
K46: Jul
K47: Aug
K48: Sep
K49: Oct
K50: Nov
A51: Comments : | K51: Dec
K52: Annual | L52: =AVERAGE(L40:L51) ->  | M52: =MAX(M40:M51) -> 0 | N52: =AVERAGE(N40:N51) ->  | O52: =MAX(O40:O51) -> 0
J54: =+A8 -> 2024 | K54: mg/Nm3 | L54: Monthly mean of half-hourly averages | M54: Highest half- hourly average | N54: Monthly mean of daily averages | O54: Highest daily average
J55: A4 | K55: Jan
K56: Feb
K57: Mar
K58: Apr
K59: May
K60: Jun
K61: Jul
K62: Aug
K63: Sep
K64: Oct
K65: Nov
K66: Dec
K67: Annual | L67: =AVERAGE(L55:L66) ->  | M67: =MAX(M55:M66) -> 0 | N67: =AVERAGE(N55:N66) ->  | O67: =MAX(O55:O66) -> 0
J69: =+A8 -> 2024 | K69: mg/Nm3 | L69: Monthly mean of half-hourly averages | M69: Highest half- hourly average | N69: Monthly mean of daily averages | O69: Highest daily average
J70: A5 | K70: Jan
K71: Feb
K72: Mar
K73: Apr
K74: May
K75: Jun
K76: Jul
K77: Aug
K78: Sep
K79: Oct
K80: Nov
K81: Dec
K82: Annual | L82: =AVERAGE(L70:L81) ->  | M82: =MAX(M70:M81) -> 0 | N82: =AVERAGE(N70:N81) ->  | O82: =MAX(O70:O81) -> 0

Sheet CO 95% 10 min
A1: =+'Cover Page'!$B$29 -> Annual Performance Report 2024 | E1: =+'Cover Page'!$B$33 -> Wolverhampton Energy from Waste Facility
A3: Monitoring of Carbon Monoxide (10-minute avg) | E3: Whole Installation | H3: See Notes in Cell S3 | J3: =+A3 -> Monitoring of Carbon Monoxide (10-minute avg) | O3: Per Combustion Line | Q3: Notes: | S3: Notes:
A5: Please complete this tab for your plant if you have 10-minute average CO ELVs; otherwise, leave it blank and complete the CO 0.5 hourly tab
S7: User to add logic to complete Whole installation, Table A5:H18. From the data in Per Combustion Line, Table K6:Q79, subject to No. of lines installed
A8: =+'Cover Page'!C39 -> 2024 | B8: 10-minute Reference Periods | F8: Daily Reference Periods
A9: mg/Nm3 | B9: 95%ile 10-min avg CO ELV | C9: Highest daily 95%ile 10-min average | D9: Monthly mean of 10-min averages | E9: Highest 10-min average | F9: Daily CO ELV | G9: Monthly mean of daily averages | H9: Highest daily average | K9: =+A8 -> 2024 | L9: mg/Nm3 | M9: Highest daily 95%ile 10-min average | N9: Monthly mean of 10-min averages | O9: Highest 10-min average | P9: Monthly mean of daily averages | Q9: Highest daily average
A10: Jan | B10: 150 | C10: =MAX(M10,M25) -> 18 | D10: =AVERAGE(N10,N25) -> 3.595 | E10: =MAX(O10,O25) -> 10 | F10: 50 | G10: =AVERAGE(P10,P25) -> 3.595 | H10: =MAX(Q10,Q25) -> 10 | K10: A1 | L10: Jan | M10: 18 | N10: 5.45 | O10: 10 | P10: 5.45 | Q10: 10
A11: Feb | B11: =+B10 -> 150 | C11: =MAX(M11,M26) -> 54 | D11: =AVERAGE(N11,N26) -> 6.355 | E11: =MAX(O11,O26) -> 54 | F11: =+F10 -> 50 | G11: =AVERAGE(P11,P26) -> 6.53 | H11: =MAX(Q11,Q26) -> 23 | L11: Feb | M11: 22 | N11: 10 | O11: 53 | P11: 10.25 | Q11: 23
A12: Mar | B12: =+B11 -> 150 | C12: 42 | D12: 7.33 | E12: 42 | F12: =+F11 -> 50 | G12: 7.735 | H12: 31 | L12: Mar | M12: 42 | N12: 7.76 | O12: 42 | P12: 8 | Q12: 31 | S12: Whole Installation table A5:H18:
A13: Apr | B13: 150 | C13: 32 | D13: 2.83 | E13: 17 | F13: 50 | G13: 2.81 | H13: 17 | L13: Apr | M13: 26 | N13: 3.8 | O13: 17 | P13: 4.09 | Q13: 17 | S13: Mean: for 10-min and daily periods use average of all operational combustion lines.
A14: May | B14: 150 | C14: 89 | D14: 1 | E14: 25 | F14: 50 | G14: 2.175 | H14: 25 | L14: May | M14: 87 | N14: 0 | O14: 8 | P14: 0.97 | Q14: 8
A15: Jun | B15: 150 | C15: 54 | D15: 2.05 | E15: 18 | F15: 50 | G15: 1.855 | H15: 18 | L15: Jun | M15: 54 | N15: 1 | O15: 18 | P15: 1.07 | Q15: 18
A16: Jul | B16: 150 | C16: 115 | D16: 4.5 | E16: 1480 | F16: 50 | G16: 4.03 | H16: 19 | L16: Jul | M16: 115 | N16: 3 | O16: 1480 | P16: 1.96 | Q16: 7 | S16: Maximum: for 10-min and daily periods use the highest of all operational combustion lines in any month.
A17: Aug | B17: 150 | C17: 27 | D17: 2 | E17: 344 | F17: 50 | G17: 2.54 | H17: 11 | L17: Aug | M17: 27 | N17: 0 | O17: 344 | P17: 0.6 | Q17: 6
A18: Sep | B18: 150 | C18: 47 | D18: 6.5 | E18: 1359 | F18: 50 | G18: 4.45 | H18: 16 | L18: Sep | M18: 33 | N18: 2 | O18: 374 | P18: 2.33 | Q18: 11
A19: Oct | B19: 150 | C19: 233 | D19: 5.5 | E19: 879 | F19: 50 | G19: 4.675 | H19: 25 | L19: Oct | M19: 233 | N19: 5 | O19: 879 | P19: 3.52 | Q19: 25
A20: Nov | B20: 150 | C20: 38 | D20: 4.5 | E20: 332 | F20: 50 | G20: 4.65 | H20: 11 | L20: Nov | M20: 38 | N20: 4 | O20: 332 | P20: 4.3 | Q20: 11
A21: Dec | B21: 150 | C21: 57 | D21: 5 | E21: 446 | F21: 50 | G21: 5.05 | H21: 13 | L21: Dec | M21: 57 | N21: 4 | O21: 446 | P21: 3.83 | Q21: 11
L22: Annual | M22: =MAX(M10:M21) -> 233 | N22: =AVERAGE(N10:N21) -> 3.834166667 | O22: =MAX(O10:O21) -> 1480 | P22: =AVERAGE(P10:P21) -> 3.864166667 | Q22: =MAX(Q10:Q21) -> 31
K24: =+A8 -> 2024 | L24: mg/Nm3 | M24: Highest daily 95%ile 10-min average | N24: Monthly mean of 10-min averages | O24: Highest 10-min average | P24: Monthly mean of daily averages | Q24: Highest daily average
K25: A2 | L25: Jan | M25: 13 | N25: 1.74 | O25: 6 | P25: 1.74 | Q25: 6
L26: Feb | M26: 54 | N26: 2.71 | O26: 54 | P26: 2.81 | Q26: 11
L27: Mar | M27: 21 | N27: 6.9 | O27: 21 | P27: 7.47 | Q27: 19
L28: Apr | M28: 32 | N28: 1.86 | O28: 7 | P28: 1.53 | Q28: 5
L29: May | M29: 89 | N29: 2 | O29: 25 | P29: 3.38 | Q29: 25
L30: Jun | M30: 38 | N30: 3.1 | O30: 14 | P30: 2.64 | Q30: 8
L31: Jul | M31: 30 | N31: 6 | O31: 657 | P31: 6.1 | Q31: 19
L32: Aug | M32: 17 | N32: 4 | O32: 246 | P32: 4.48 | Q32: 11
L33: Sep | M33: 47 | N33: 11 | O33: 1359 | P33: 6.57 | Q33: 16
L34: Oct | M34: 23 | N34: 6 | O34: 685 | P34: 5.83 | Q34: 12
L35: Nov | M35: 29 | N35: 5 | O35: 289 | P35: 5 | Q35: 10
L36: Dec | M36: 36 | N36: 6 | O36: 428 | P36: 6.27 | Q36: 13
L37: Annual | M37: =MAX(M25:M36) -> 89 | N37: =AVERAGE(N25:N36) -> 4.6925 | O37: =MAX(O25:O36) -> 1359 | P37: =AVERAGE(P25:P36) -> 4.485 | Q37: =MAX(Q25:Q36) -> 25
K39: =+A8 -> 2024 | L39: mg/Nm3 | M39: Highest daily 95%ile 10-min average | N39: Monthly mean of 10-min averages | O39: Highest 10-min average | P39: Monthly mean of daily averages | Q39: Highest daily average
K40: A3 | L40: Jan
L41: Feb
L42: Mar
L43: Apr
L44: May
L45: Jun
L46: Jul
L47: Aug
L48: Sep
L49: Oct
L50: Nov
A51: Comments : | L51: Dec
A52: Environment Agency explanatory note: The 10-minute average ELV is based on the “95th percentile”. In this case this means that 95% of the 10 minute averages in the relevant 24-hour period (i.e. 137) must be below 150 mg/Nm3, and 5% (i.e. 7) are allowed to be any value above 150 mg/Nm3. Whilst we expect operators to minimise CO emissions at all times, it is perfectly acceptable for the value of the maximum 10-minute average to be above 150 mg/Nm3, provided the 95th percentile ELV has been met for that period. | L52: Annual | M52: =AVERAGE(M40:M51) ->  | O52: =MAX(O40:O51) -> 0 | P52: =AVERAGE(P40:P51) ->  | Q52: =MAX(Q40:Q51) -> 0
K54: =+A8 -> 2024 | L54: mg/Nm3 | M54: Highest daily 95%ile 10-min average | N54: Monthly mean of 10-min averages | O54: Highest 10-min average | P54: Monthly mean of daily averages | Q54: Highest daily average
K55: A4 | L55: Jan
L56: Feb
L57: Mar
L58: Apr
L59: May
L60: Jun
L61: Jul
L62: Aug
L63: Sep
L64: Oct
L65: Nov
L66: Dec
L67: Annual | M67: =AVERAGE(M55:M66) ->  | O67: =MAX(O55:O66) -> 0 | P67: =AVERAGE(P55:P66) ->  | Q67: =MAX(Q55:Q66) -> 0
K69: =+A8 -> 2024 | L69: mg/Nm3 | M69: 95%ile 10-min avg maximum | N69: Monthly CO 10-min avg mean | O69: 10-min avg maximum | P69: Monthly daily mean | Q69: Monthly daily maximum
K70: A5 | L70: Jan
L71: Feb
L72: Mar
L73: Apr
L74: May
L75: Jun
L76: Jul
L77: Aug
L78: Sep
L79: Oct
L80: Nov
L81: Dec
L82: Annual | M82: =AVERAGE(M70:M81) ->  | O82: =MAX(O70:O81) -> 0 | P82: =AVERAGE(P70:P81) ->  | Q82: =MAX(Q70:Q81) -> 0

Sheet NH3
A1: =+'Cover Page'!$B$29 -> Annual Performance Report 2024 | E1: =+'Cover Page'!$B$33 -> Wolverhampton Energy from Waste Facility
A3: Monitoring of Ammnonia emissions | D3: Whole Installation | G3: See Notes in Cell Q3 | J3: =+A3 -> Monitoring of Ammnonia emissions | N3: Per Combustion Line | Q3: Notes:
Q4: User to add logic to complete Whole installation, Table A5:G18. From the data in Per Combustion Line, Table J6:O79, subject to No. of lines installed
A5: =+'Cover Page'!C39 -> 2024 | B5: 1/2 Hourly Reference Periods | E5: Daily Reference Periods
A6: mg/Nm3 | B6: 1/2 hourly NH3 ELV | C6: Monthly mean of half-hourly averages | D6: Highest half- hourly average | E6: Daily NH3 ELV | F6: Monthly mean of daily averages | G6: Highest daily average | J6: =+A5 -> 2024 | K6: mg/Nm3 | L6: Monthly mean of half-hourly averages | M6: Highest half- hourly average | N6: Monthly mean of daily averages | O6: Highest daily average
A7: Jan | B7: None | C7: =AVERAGE(L7,L22) -> 2.145 | D7: =MAX(M7,M22) -> 18 | E7: 15 | F7: =AVERAGE(N7,N22) -> 2.145 | G7: =MAX(O7,O22) -> 5 | J7: A1 | K7: Jan | L7: 3.52 | M7: 18 | N7: 3.52 | O7: 5
A8: Feb | B8: =+B7 -> None | C8: =AVERAGE(L8,L23) -> 4.325 | D8: =MAX(M8,M23) -> 174 | E8: 15 | F8: =AVERAGE(N8,N23) -> 4.44 | G8: =MAX(O8,O23) -> 17 | K8: Feb | L8: 6 | M8: 62 | N8: 6.13 | O8: 11
A9: Mar | B9: =+B8 -> None | C9: 3.885 | D9: 119 | E9: 15 | F9: 3.54 | G9: 8 | K9: Mar | L9: 5.92 | M9: 45 | N9: 5.68 | O9: 8 | Q9: Whole Installation table A5:G18:
A10: Apr | B10: None | C10: 3.81 | D10: 55 | E10: 15 | F10: 3.475 | G10: 15 | K10: Apr | L10: 3 | M10: 20 | N10: 2.95 | O10: 5 | Q10: Mean: for 1/2 hourly and daily periods calculate mean of values across all operational combustion lines for the month
A11: May | B11: None | C11: 4.315 | D11: 50 | E11: 15 | F11: 4.27 | G11: 12 | K11: May | L11: 2.52 | M11: 30 | N11: 2.41 | O11: 8
A12: Jun | B12: None | C12: 3.65 | D12: 41 | E12: 15 | F12: 3.665 | G12: 10 | K12: Jun | L12: 1.97 | M12: 29 | N12: 1.79 | O12: 7
A13: Jul | B13: None | C13: 3.89 | D13: 84 | E13: 15 | F13: 3.66 | G13: 7 | K13: Jul | L13: 5.55 | M13: 84 | N13: 5.12 | O13: 7 | Q13: Maximum: for 1/2 hourly and daily periods use the highest value across all operational combustion lines for the month
A14: Aug | B14: None | C14: 5.505 | D14: 98 | E14: 15 | F14: 5.535 | G14: 18 | K14: Aug | L14: 7.42 | M14: 98 | N14: 7.43 | O14: 18
A15: Sep | B15: None | C15: 4.92 | D15: 41 | E15: 15 | F15: 4.7 | G15: 11 | K15: Sep | L15: 6.64 | M15: 41 | N15: 6.69 | O15: 11
A16: Oct | B16: None | C16: 3.78 | D16: 47 | E16: 15 | F16: 3.4 | G16: 7 | K16: Oct | L16: 5.36 | M16: 47 | N16: 4.6 | O16: 7
A17: Nov | B17: None | C17: 3.42 | D17: 41 | E17: 15 | F17: 3.35 | G17: 7 | K17: Nov | L17: 4.72 | M17: 41 | N17: 4.61 | O17: 7
A18: Dec | B18: None | C18: 3.505 | D18: 45 | E18: 15 | F18: 3.425 | G18: 10 | K18: Dec | L18: 4.17 | M18: 19 | N18: 4 | O18: 6
K19: Annual | L19: =AVERAGE(L7:L18) -> 4.7325 | M19: =MAX(M7:M18) -> 98 | N19: =AVERAGE(N7:N18) -> 4.5775 | O19: =MAX(O7:O18) -> 18
J21: =+A5 -> 2024 | K21: mg/Nm3 | L21: Monthly mean of half-hourly averages | M21: Highest half- hourly average | N21: Monthly mean of daily averages | O21: Highest daily average
J22: A2 | K22: Jan | L22: 0.77 | M22: 13 | N22: 0.77 | O22: 2
K23: Feb | L23: 2.65 | M23: 174 | N23: 2.75 | O23: 17
K24: Mar | L24: 1.85 | M24: 119 | N24: 1.4 | O24: 4
K25: Apr | L25: 4.62 | M25: 55 | N25: 4 | O25: 15
K26: May | L26: 6.11 | M26: 50 | N26: 6.13 | O26: 12
K27: Jun | L27: 5.33 | M27: 41 | N27: 5.54 | O27: 10
K28: Jul | L28: 2.23 | M28: 9 | N28: 2.2 | O28: 3
K29: Aug | L29: 3.59 | M29: 30 | N29: 3.64 | O29: 10
K30: Sep | L30: 3.2 | M30: 27 | N30: 2.71 | O30: 3
K31: Oct | L31: 2.2 | M31: 9 | N31: 2.2 | O31: 3
K32: Nov | L32: 2.12 | M32: 9 | N32: 2.09 | O32: 3
K33: Dec | L33: 2.84 | M33: 45 | N33: 2.85 | O33: 10
K34: Annual | L34: =AVERAGE(L22:L33) -> 3.125833333 | M34: =MAX(M22:M33) -> 174 | N34: =AVERAGE(N22:N33) -> 3.023333333 | O34: =MAX(O22:O33) -> 17
J36: =+A5 -> 2024 | K36: mg/Nm3 | L36: Monthly mean of half-hourly averages | M36: Highest half- hourly average | N36: Monthly mean of daily averages | O36: Highest daily average
J37: A3 | K37: Jan
K38: Feb
K39: Mar
K40: Apr
K41: May
K42: Jun
K43: Jul
K44: Aug
K45: Sep
K46: Oct
K47: Nov
A48: Comments : | K48: Dec
A49: An indicated ELV value of zero in the table above means that no ammonia limit is/was set in the permit. | K49: Annual | L49: =AVERAGE(L37:L48) ->  | M49: =MAX(M37:M48) -> 0 | N49: =AVERAGE(N37:N48) ->  | O49: =MAX(O37:O48) -> 0
J51: =+A5 -> 2024 | K51: mg/Nm3 | L51: Monthly mean of half-hourly averages | M51: Highest half- hourly average | N51: Monthly mean of daily averages | O51: Highest daily average
J52: A4 | K52: Jan
K53: Feb
K54: Mar
K55: Apr
K56: May
K57: Jun
K58: Jul
K59: Aug
K60: Sep
K61: Oct
K62: Nov
K63: Dec
K64: Annual | L64: =AVERAGE(L52:L63) ->  | M64: =MAX(M52:M63) -> 0 | N64: =AVERAGE(N52:N63) ->  | O64: =MAX(O52:O63) -> 0
J66: =+A5 -> 2024 | K66: mg/Nm3 | L66: Monthly mean of half-hourly averages | M66: Highest half- hourly average | N66: Monthly mean of daily averages | O66: Highest daily average
J67: A5 | K67: Jan
K68: Feb
K69: Mar
K70: Apr
K71: May
K72: Jun
K73: Jul
K74: Aug
K75: Sep
K76: Oct
K77: Nov
K78: Dec
K79: Annual | L79: =AVERAGE(L67:L78) ->  | M79: =MAX(M67:M78) -> 0 | N79: =AVERAGE(N67:N78) ->  | O79: =MAX(O67:O78) -> 0

Sheet Template changes log
A1: Log of changes to template (Environment Agency use only)
A3: Date | B3: Description of change | C3: New version number and date
A4: 2024-01-16 | B4: Air (periodic) tab: corrected default O2 reference from 6 to 11% | C4: Version 23.5a (for incinerators) - 16/01/2024
A5: 2024-09-23 | B5: Air (periodic) tab: corrected symbol for Thallium to Tl
A6: 2024-09-23 | B6: Air (periodic) tab: removed last year's references to different emission limit values applying from 03/12/23 and updated all relevant ELVs
A7: 2024-09-23 | B7: Tabs for continuously monitored pollutants (HCl, SO2 etc.): changed terminology in table headings to improve clarity
A8: 2024-09-23 | B8: Tabs for continuously monitored pollutants (HCl, SO2 etc.): removed last year's references to different emission limit values applying from 03/12/23 and updated all relevant ELVs
A9: 2024-09-23 | B9: Perf 1 tab: updated formula for water usage to report m3 rather than litres and corrected error with formula copying operator name
A10: 2024-09-23 | B10: Operational Summary tab: table added on start-ups and shut-downs
A11: 2024-09-23 | B11: Operational Summary tab: table added on dioxins and mercury protocols
A12: 2024-09-23 | B12: Operational Summary tab: table added on AST, QAL 2 and calibration functions
A13: 2024-09-23 | B13: CO2 N2O tab: various changes made to notes to reflect the fact that most plants should now have calibrated CEMS and flow meters + some have C14 samplers and more up to date industry data | C13: Version 24a (for incinerators) - 23/09/24
A14: 2024-11-08 | B14: CO2 N2O tab: Changed the N2O CO2 equivalence factor from 298 to 265 in line with recently updated government greenhouse gas figures: https://www.gov.uk/government/publications/greenhouse-gas-reporting-conversion-factors-2024
A15: 2024-11-08 | B15: CO2 N2O tab: Added an additional requirement for municipal EfW plants to state the yearly average biogenic percentage of the waste by mass, and reference to a document which sets out a methodology for calculating NCV of waste from the results of C14 sampling.
A16: 2024-11-08 | B16: Permit Compliance tab: Two additional columns added + explanatory notes to the table entitled "Summary of non-compliances under the permit" to allow CCS scores to be stated where relevant.
A17: 2024-11-08 | B17: Residue Quality tab: Note added explaining application of TOC and LOI limits and asking operators to report both metrics where measured. | C17: Version 24.1a (for incinerators) - 08/11/24
A18: 2024-11-27 | B18: Operational Summary tab: Tables on mercury & dioxins protocols and ASTs removed (covered instead by new tables added to updated Air 9 periodic monitoring form) | C18: Version 24.2a (for incinerators) - 27/11/24
